Workbook

Sheet Description of columns
A1: This list describes the column headings in the main "Measures" sheet
A3: Column letter | B3: Column heading | C3: Description
A4: A | B4: Identification number | C4: Unique identifier per line
A5: B | B5: Country | C5: 3-letter country code
A6: C | B6: Type of measure | C6: Categorisation of policy type
A7: D | B7: Scope | C7: Economy-wide, sectoral, sub-national etc
A8: E | B8: Sector | C8: Which sector(s) covered
A9: F | B9: Value of measure (USD or specify) | C9: Total value of funding announced (if applicable)
A10: G | B10: Environmental dimension 1 | C10: Up to three environmental dimensions potentially affected by the measure (positively or negatively)
A11: H | B11: Environmental dimension 2
A12: I | B12: Environmental dimension 3
A13: J | B13: Gender relevant? | C13: Does the measure have a gender impact?
A14: K | B14: Gender sensitive? | C14: Categorisation of gender impact
A15: L | B15: Summary description | C15: Description of measure
A16: M | B16: Source | C16: Online source for data
A17: N | B17: Source 2
A18: O | B18: Environmental impact category | C18: Impact on the environment
A19: P | B19: Original currency | C19: Currency conversion fields
A20: Q | B20: Original value (million)
A21: R | B21: Convert to USD millions
A27: Please note that the measures included in the database for South Africa have been independently compiled by the OECD Secretariat and have not been endorsed by the Government of South Africa.

Sheet Measures
A1: Identification number | B1: Country | C1: Type of measure | D1: Scope | E1: Sector | F1: Value of measure (USD or specify) | G1: Environmental dimension 1 | H1: Environmental dimension 2 | I1: Environmental dimension 3 | J1: Gender relevant? | K1: Gender sensitive? | L1: Summary description | M1: Source 1 | N1: Source 2 | O1: Environmental impact category | P1: Original currency | Q1: Million original currency | R1: Convert to USD millions
A2: AUS2 | B2: AUS | C2: Grant/Loan (including interest-free loans) | D2: Sectoral | E2: Air transport | F2: AUD 198m | G2: Climate Mitigation | L2: Regional Network Air Assistance - to assist domestic commercial airlines to maintain a basic level of connectivity across their network of regional routes. This is supporting critical air services, connecting regional Australia to freight, medical testing, supplies and essential personnel. | M2: https://treasury.gov.au/sites/default/files/2020-07/Fact_Sheet-COVID-19_Relief_Fund.pdf | O2: Indeterminate | P2: AUD | Q2: 198 | R2: 139.9901645
A3: AUS4 | B3: AUS | C3: Tax reduction / Other subsidy | D3: Sectoral | E3: Multiple or n.a. | F3: AUD 10.3m | G3: Biodiversity | L3: Levy Relief from Commonwealth Fisheries - The Australian Government is waiving the final two instalments of levies for Commonwealth managed fisheries, reducing levies for the 2019-20 financial year by two thirds. No estimate of revenue foregone provided | M3: https://treasury.gov.au/sites/default/files/2020-07/Fact_Sheet-COVID-19_Relief_Fund.pdf | O3: Indeterminate | P3: AUD | Q3: 10.3 | R3: 7.282316636
A4: AUS5 | B4: AUS | C4: Tax reduction / Other subsidy | D4: Economy-wide | E4: Multiple or n.a. | F4: AUD 12m | G4: Biodiversity | L4: Fee Waivers for Commonwealth National Parks plus support for businesses operating in Commonwealth National Parks | M4: https://treasury.gov.au/sites/default/files/2020-07/Fact_Sheet-COVID-19_Relief_Fund.pdf | O4: Indeterminate | P4: AUD | Q4: 12 | R4: 8.484252391
A5: AUS6 | B5: AUS | C5: Tax reduction / Other subsidy | D5: Sectoral | E5: Multiple or n.a. | F5: AUD 8.1m | G5: Biodiversity | L5: Temporary waiver of environmental management change in the Great Barrier Reef Marine Park | M5: https://treasury.gov.au/sites/default/files/2020-07/Fact_Sheet-COVID-19_Relief_Fund.pdf | O5: Negative | P5: AUD | Q5: 8.1 | R5: 5.726870364
A6: AUS7 | B6: AUS | C6: Grant/Loan (including interest-free loans) | D6: Sectoral | E6: Multiple or n.a. | F6: AUD 4m | G6: Biodiversity | L6: Seafood Sector COVID-19 Support - "Eat Seafood Australia" Campaign | M6: https://treasury.gov.au/sites/default/files/2020-07/Fact_Sheet-COVID-19_Relief_Fund.pdf | O6: Indeterminate | P6: AUD | Q6: 4 | R6: 2.82808413
A7: AUS8 | B7: AUS | C7: Grant/Loan (including interest-free loans) | D7: Sectoral | E7: Industry | F7: AUD 40m | G7: Biodiversity | L7: Securing forestry resources for economic recovery - funding to Australia’s forestry industries to help manage the compounding effects of the Coronavirus crisis and the 2019-20 bushfire season. This initiative will safeguard the future timber supply by assisting with the storage of fire-affected salvage logs, processed timber products, and other forestry products. | M7: https://treasury.gov.au/sites/default/files/2020-07/Fact_Sheet-COVID-19_Relief_Fund.pdf | O7: Positive | P7: AUD | Q7: 40 | R7: 28.2808413
A8: AUS9 | B8: AUS | C8: Tax reduction / Other subsidy | D8: Sectoral | E8: Energy | F8: AUD 7.8m | G8: Waste & recycling | H8: Water | L8: Temporary oil recycling sector support - temporarily increases the subsidy paid to oil recyclers under the Product Stewardship Oil Scheme for category one oil from 50 cents per litre to 62 cents per litre. The Australian Government established the Product Stewardship Oil Scheme in 2001 to address the mismanagement of unconsumed used oils. The Australian Government pays a benefit to oil recyclers to incentivise the collection and re-refinement of waste oil. No estimate of subsidy provided. | M8: https://treasury.gov.au/sites/default/files/2020-07/Fact_Sheet-COVID-19_Relief_Fund.pdf | O8: Positive | P8: AUD | Q8: 7.8 | R8: 5.514764054
A9: AUS11 | B9: AUS | C9: Grant/Loan (including interest-free loans) | D9: Economy-wide | E9: Multiple or n.a. | F9: AUD 100m | G9: Other | L9: Regional Recovery Partnerships - to support existing regional development plans in 10 regions | M9: https://treasury.gov.au/sites/default/files/2020-03/Fact_sheet-Assistance_for_severely_affected_regions_and_sectors.pdf | O9: Indeterminate | P9: AUD | Q9: 100 | R9: 70.70210326
A10: AUS12 | B10: AUS | C10: Grant/Loan (including interest-free loans) | D10: City/regional | E10: Multiple or n.a. | F10: AUD 51.8 billion | G10: Climate Mitigation | H10: Air Pollution | I10: Other | L10: Infrastructure guarantee fund - maintaining the current State infrastructure investment program at $51.8 billion over the next four years 2019-20 to 2022-23 | M10: https://www.covid19.qld.gov.au/government-actions/our-economic-recovery-strategy | O10: Mixed | P10: AUD | Q10: 51800 | R10: 36623.68949
A11: AUS13 | B11: AUS | C11: Grant/Loan (including interest-free loans) | D11: Sectoral | E11: Buildings | F11: AUD 680m | G11: Biodiversity | L11: HomeBuilder provides eligible owner-occupiers (including first home buyers) with a grant to build a new home or substantially renovate an existing home. HomeBuilder assists the residential construction sector by encouraging the commencement of new home builds and renovations. | M11: https://treasury.gov.au/coronavirus/homebuilder | N11: https://treasury.gov.au/sites/default/files/2020-12/HomeBuilder_extension_factsheet.pdf | O11: Indeterminate | P11: AUD | Q11: 680 | R11: 480.7743022
A12: AUS14 | B12: AUS | C12: Regulatory change | D12: Sectoral | E12: Agriculture | F12: AUD 14.4m | G12: Other | L12: Improving Regulation post-COVID-19 including Targeted Interventions for Seafood and Live Animal Exporters | M12: https://www.awe.gov.au/sites/default/files/2020-10/budget-2020-21_cultivating-profitable-and-resilient-agricultural-businesses.pdf | O12: Indeterminate | P12: AUD | Q12: 14.4 | R12: 10.18110287
A13: AUS15 | B13: AUS | C13: Other or not specified | D13: Sectoral | E13: Buildings | F13: AUD 40.6m | G13: Biodiversity | L13: Protecting and restoring Sydney Harbour Federation Trust properties | M13: https://www.awe.gov.au/sites/default/files/2020-10/budget-2020-21_protecting-our-iconic-places.pdf | O13: Indeterminate | P13: AUD | Q13: 40.6 | R13: 28.70505392
A14: AUS16 | B14: AUS | C14: Grant/Loan (including interest-free loans) | D14: Sectoral | E14: Multiple or n.a. | F14: AUD 3.2m | G14: Biodiversity | H14: Water | L14: Great Barrier Reef tourism industry activation and reef protection, maintenance and monitoring. | M14: https://www.awe.gov.au/sites/default/files/2020-10/budget-2020-21_protecting-our-iconic-places.pdf | O14: Indeterminate | P14: AUD | Q14: 3.2 | R14: 2.262467304
A15: AUS17 | B15: AUS | C15: Grant/Loan (including interest-free loans) | D15: Sectoral | E15: Multiple or n.a. | F15: AUD 5.5m | G15: Other | H15: Biodiversity | L15: Supplementing GBRMPA for waiving environmental management charges | M15: https://www.awe.gov.au/sites/default/files/2020-10/budget-2020-21_protecting-our-iconic-places.pdf | O15: Indeterminate | P15: AUD | Q15: 5.5 | R15: 3.888615679
A16: AUS18 | B16: AUS | C16: Tax reduction / other subsidy | D16: Sectoral | E16: Multiple or n.a. | F16: AUD 6m | G16: Other | H16: Biodiversity | L16: Extending waiver of the GBRMPA Environment Management Charge | M16: https://www.awe.gov.au/sites/default/files/2020-10/budget-2020-21_protecting-our-iconic-places.pdf | O16: Indeterminate | P16: AUD | Q16: 6 | R16: 4.242126196
A17: AUS19 | B17: AUS | C17: Grant/Loan (including interest-free loans) | D17: Sectoral | E17: Multiple or n.a. | F17: AUD 11.2m | G17: Other | H17: Biodiversity | L17: Supplementing our National Parks for waiving park entry fees to Kakadu, Uluru Kata-Tjuta and Booderee, to provide incentives for travellers to visit after restrictions relax | M17: https://www.awe.gov.au/sites/default/files/2020-10/budget-2020-21_protecting-our-iconic-places.pdf | O17: Indeterminate | P17: AUD | Q17: 11.2 | R17: 7.918635565
A18: AUS20 | B18: AUS | C18: Grant/Loan (including interest-free loans) | D18: Sectoral | E18: Multiple or n.a. | F18: AUD 5m | G18: Other | L18: Support critical capital works and capital projects to refurbish and replace external structures at Reef HQ. | M18: https://www.infrastructure.gov.au/department/statements/2020_2021/ministerial-statement/agriculture-water-environment.aspx#new | O18: Positive | P18: AUD | Q18: 5 | R18: 3.535105163
A19: AUS21 | B19: AUS | C19: Other or not specified | D19: Sectoral | E19: Waste management | F19: AUD 59.6m | G19: Waste & recycling | L19: National Waste Policy Action Plan implementation | M19: https://www.awe.gov.au/sites/default/files/2020-10/budget-2020-21_transforming-waste-recycling.pdf | O19: Positive | P19: AUD | Q19: 59.6 | R19: 42.13845354
A20: AUS22 | B20: AUS | C20: Other or not specified | D20: Sectoral | E20: Waste management | F20: AUD 190m | G20: Waste & recycling | L20: Recycling Modernisation Fund - will support waste recovery and combined with the National Waste Policy Action Plan will create over 10,000 jobs over the next 10 years. | M20: https://www.awe.gov.au/sites/default/files/2020-10/budget-2020-21_transforming-waste-recycling.pdf | O20: Positive | P20: AUD | Q20: 190 | R20: 134.3339962
A21: AUS23 | B21: AUS | C21: Other or not specified | D21: Sectoral | E21: Multiple or n.a. | F21: AUD 2.5m | G21: Biodiversity | H21: Adaptation | L21: Exploring market-based solutions for habitat restoration | M21: https://www.awe.gov.au/sites/default/files/2020-10/budget-2020-21_reforming-environmental-laws-regulations_0.pdf | O21: Positive | P21: AUD | Q21: 2.5 | R21: 1.767552582
A22: AUS24 | B22: AUS | C22: Grant/Loan (including interest-free loans) | D22: City/regional | E22: Multiple or n.a. | F22: AUD 37.6m | G22: Biodiversity | H22: Water | L22: Projects that will sustain South Australia Riverland environments | M22: https://www.awe.gov.au/sites/default/files/2020-10/budget_2020-21_investing-in-communities-and-building-confidence-in-the-basin-plan.pdf | O22: Positive | P22: AUD | Q22: 37.6 | R22: 26.58399083
A23: AUS25 | B23: AUS | C23: Grant/Loan (including interest-free loans) | D23: City/regional | E23: Multiple or n.a. | F23: AUD 24.5m | G23: Biodiversity | H23: Water | L23: Community driven projects to improve the health of rivers and wetlands | M23: https://www.awe.gov.au/sites/default/files/2020-10/budget_2020-21_investing-in-communities-and-building-confidence-in-the-basin-plan.pdf | O23: Positive | P23: AUD | Q23: 24.5 | R23: 17.3220153
A24: AUS26 | B24: AUS | C24: Other or not specified | D24: City/regional | E24: Multiple or n.a. | F24: AUD 4.2m | G24: Biodiversity | L24: First Nations River Ranger Program | M24: https://www.awe.gov.au/sites/default/files/2020-10/budget_2020-21_investing-in-communities-and-building-confidence-in-the-basin-plan.pdf | O24: Positive | P24: AUD | Q24: 4.2 | R24: 2.969488337
A25: AUS27 | B25: AUS | C25: Other or not specified | D25: City/regional | E25: Multiple or n.a. | F25: AUD 20m | G25: Biodiversity | H25: Water | L25: Reef builder - aiding the recovery of coastal communities | M25: https://www.awe.gov.au/sites/default/files/2020-10/budget-2020-21_supporting-healthy-oceans.pdf | O25: Positive | P25: AUD | Q25: 20 | R25: 14.14042065
A26: AUS28 | B26: AUS | C26: Skills training | D26: City/regional | E26: Multiple or n.a. | F26: AUD 23m | G26: Biodiversity | H26: Adaptation | L26: Green jobs - Employment of people with no prior skill in environmental restoration and conservation | M26: Green Recovery Measures for Western Australia - Sustainable Recovery 2020 (iisd.org) | O26: Positive | P26: AUD | Q26: 23 | R26: 16.26148375
A27: AUS29 | B27: AUS | C27: Grant/Loan (including interest-free loans) | D27: Sectoral | E27: Energy | F27: AUD 10m | G27: Climate Mitigation | H27: Air Pollution | L27: Investment directed towards the Clean Energy Future Fund to invest in clean energy technologies | M27: Green Recovery Measures for Western Australia - Sustainable Recovery 2020 (iisd.org) | O27: Positive | P27: AUD | Q27: 10 | R27: 7.070210326
A28: AUS30 | B28: AUS | C28: Other or not specified | D28: City/regional | E28: Energy | F28: AUD 6m | G28: Climate Mitigation | H28: Air Pollution | L28: Installation of rooftop solar PV on social housing | M28: Green Recovery Measures for Western Australia - Sustainable Recovery 2020 (iisd.org) | O28: Positive | P28: AUD | Q28: 6 | R28: 4.242126196
A29: AUS31 | B29: AUS | C29: Other or not specified | D29: City/regional | E29: Buildings | F29: AUD 13m | G29: Other | H29: Biodiversity | L29: Upgrades at Volunteer Emergency Services stations and units across Western Australia (inclusing fire and rescue services and bush fire brigades) | M29: Green Recovery Measures for Western Australia - Sustainable Recovery 2020 (iisd.org) | O29: Positive | P29: AUD | Q29: 13 | R29: 9.191273424
A30: AUS32 | B30: AUS | C30: Skills training | D30: City/regional | E30: Multiple or n.a. | F30: AUD 5.5m | G30: Other | H30: Climate Mitigation | L30: Creating jobs in Western Australia across sectors such as renewable energy, agriculture, construction and education. | M30: Green Recovery Measures for Western Australia - Sustainable Recovery 2020 (iisd.org) | O30: Positive | P30: AUD | Q30: 5.5 | R30: 3.888615679
A31: AUS33 | B31: AUS | C31: Grant/Loan (including interest-free loans) | D31: Sectoral | E31: Energy | F31: AUD 50m | G31: Climate Mitigation | H31: Air Pollution | L31: Carbon Capture Use and Storage Development Fund for piloting carbon capture projects to help cut emissions | M31: Investment in new energy technologies | Prime Minister of Australia (pm.gov.au) | O31: Positive | P31: AUD | Q31: 50 | R31: 35.35105163
A32: AUS41 | B32: AUS | C32: Grant/Loan (including interest-free loans) | D32: Sectoral | E32: Buildings | F32: AUD 2b | G32: Water | L32: Funding for projects through the National Water Infrastructure Fund to deliver increased water security, build resilience, deliver jobs and grow agrocultural sector. I.e. National Water Grid. | M32: https://minister.infrastructure.gov.au/mccormack/media-release/infrastructure-investment-laying-foundations-australias-economic-recovery | O32: Positive | P32: AUD | Q32: 2000 | R32: 1414.042065
A33: AUS42 | B33: AUS | C33: Other or not specified | D33: Sectoral | E33: Multiple or n.a. | F33: AUD 33.5m | G33: Other | H33: Biodiversity | L33: COVID-19 Response Package — Relief and Recovery Fund — additional projects: Sustaining tourism at Australia's iconic World and National Heritage sites. Including improvements to visitor facilities and accomodation. | M33: https://www.infrastructure.gov.au/department/statements/2020_2021/ministerial-statement/agriculture-water-environment.aspx#new | O33: Indeterminate | P33: AUD | Q33: 33.5 | R33: 23.68520459
A34: AUS44 | B34: AUS | C34: Other or not specified | D34: City/regional | E34: Surface transport | F34: AUD 200m | G34: Other | L34: Murray Basin Frieght Rail Project to better connect producers in Victoria with key domestic and export markets. | M34: https://budget.gov.au/2020-21/content/myefo/download/myefo-2020-21.pdf | O34: Positive | P34: AUD | Q34: 200 | R34: 141.4042065
A35: AUS51 | B35: AUS | C35: Other or not specified | D35: City/regional | E35: Energy | F35: AUD 2.8 Mio | G35: Climate Mitigation | H35: Air Pollution | J35: No | K35: No | L35: The State Government of Queensland introduced a multi-million dollar package of tax and fee exemptions in aid of coal and gas exploration. These include: a 12-month waiver of rent on exploration land due between 1 April and 1 September 2020; a freeze on fees and charges until 1 July 2021; releasing almost 7 000 km2 of land for gas and mineral exploration; advancing AUD 2.8 million in grant funds for innovative exploration in the North West Minerals Province (May 2020) | M35: OECD, forthcoming. Draft report on recent progress in reforms of fossil fuel subsidies | O35: Negative | P35: AUD | Q35: 2.8 | R35: 1.979658891
A36: AUS52 | B36: AUS | C36: Other or not specified | D36: Sectoral | E36: Energy | F36: AUD 233 Mio | G36: Climate Mitigation | H36: Air Pollution | J36: No | K36: No | L36: The government allocated further 233 Mio AUD to promote the National Low Emissions Coal Initiative | M36: https://climateactiontracker.org/countries/australia/ | O36: Positive | P36: AUD | Q36: 233 | R36: 164.7359006
A37: AUS53 | B37: AUS | C37: Grant/Loan (including interest-free loans) | D37: Sectoral | E37: Agriculture | F37: AUD 258 Mio | G37: Adaptation | H37: Water | I37: Climate Mitigation | J37: No | K37: No | L37: The government provides further $258 million in 2021/2022 for a small-scale water infrastructure and funding pathway and to build new dams and irrigation projects | M37: https://budget.gov.au/2021-22/content/download/glossy_jobs.pdf | O37: Positive | P37: AUD | Q37: 258 | R37: 182.4114264
A38: AUS54 | B38: AUS | C38: Other or not specified | D38: Sectoral | E38: Agriculture | F38: AUD 9 Mio | G38: Biodiversity | J38: No | K38: No | L38: Speeding up farmers’ access to new agricultural and veterinary chemicals with $9 million | M38: https://budget.gov.au/2021-22/content/download/glossy_jobs.pdf | O38: Indeterminate | P38: AUD | Q38: 9 | R38: 6.363189293
A39: AUS55 | B39: AUS | C39: Regulatory change | D39: Sectoral | E39: Energy | F39: n.a. | G39: Climate Mitigation | H39: Air Pollution | J39: no | K39: No | L39: Broadened remit of the Australian Renewable Energy Agency. The broadened remit will allow ARENA to support technologies contained in the Low Emissions Technology Statement (LETS) such as hydrogen, energy storage to back up renewable energy, low emissions aluminium and steel production, carbon capture and soil carbon. In addition, the regulation will ensure that ARENA can deliver the targeted programs outlined in the 2020-21 Federal Budget; the Future Fuels Fund, Industrial Energy Transformation Studies Program, Regional Australia Microgrids Pilot Program and the Freight Energy Productivity Program | M39: https://arena.gov.au/news/arena-welcomes-expanded-mandate-to-support-the-next-generation-of-clean-energy-technologies/ | O39: Positive
A40: AUS56 | B40: AUS | C40: Tax reduction / Other subsidy | D40: Sectoral | E40: Surface transport | F40: AUD 490m | G40: Climate Mitigation | H40: Air Pollution | J40: no | K40: no | L40: • New South Wales 490 million in tax cuts and incentives for electric vehicles. Stamp duty will be waived for eligible electric vehicles (battery and hydrogen fuel cell vehicles) priced under $78,000 purchased from 1 September 2021; Rebates of $3,000 will be offered on private purchases of the first 25,000 eligible EVs (battery and hydrogen fuel cell vehicles) under $68,750 sold in NSW from 1 September 2021; $171 million for new charging infrastructure across the State. This includes $131 million to spend on new ultra-fast vehicle chargers, $20 million in grants for destination chargers to assist regional tourism, and $20 million for charging infrastructure at public transport hubs on Transport for NSW owned land. $33 million to help transition the NSW Government passenger fleet to EVs where feasible, with the target of a fully electric fleet by 2030. These vehicles typically are onsold after three to five years, providing availability for private buyers in the second hand market. | M40: https://www.environment.nsw.gov.au/news/nsw-leading-the-charge-with-electric-vehicle-revolution | O40: Positive | P40: AUD | Q40: 490 | R40: 346.440306
A41: AUS57 | B41: AUS | C41: R&D subsidies | D41: Economy-wide | E41: Multiple or n.a. | F41: AUD 1.2 billion | G41: Climate Mitigation | H41: Air Pollution | L41: the Government will provide a further $1.2 billion to establish Australia at the forefront of low emissions technology innovation. $565.8 million to establish international partnerships on practical low emissions projects; $275.5 million to support up to four additional hydrogen hubs; $263.7 million to accelerate the development of Carbon Capture Use and Storage; and $59.6 million to support a National Soil Carbon Innovation Challenge and trial new agricultural feed technologies that reduce emissions from livestock. | M41: https://budget.gov.au/2021-22/content/resilient.htm#nine | O41: Positive | P41: AUD | Q41: 1200 | R41: 848.4252391
A42: AUS58 | B42: AUS | C42: Grant/Loan (including interest-free loans) | D42: Sectoral | E42: Energy | F42: AUD 1.9 billion | G42: Climate Mitigation | H42: Air Pollution | L42: The Government will provide $1.9 billion over twelve years from 2020-21 (including $628.5 million over four years to 2023-24) to continue funding the Australian Renewable Energy Agency (ARENA), expand the investment mandate of the Clean Energy Finance Corporation (CEFC), and invest in low emissions technologies, network infrastructure, dispatchable generation and reliable supplies in the National Electricity Market (NEM) | M42: Investment in new energy technologies | Prime Minister of Australia (pm.gov.au) | O42: Positive | P42: AUD | Q42: 1900 | R42: 1343.339962
A43: AUS59 | B43: AUS | C43: Other or not specified | D43: Sectoral | E43: Multiple or n.a. | F43: AUD 20m | G43: Biodiversity | H43: Water | L43: COVID-19 Response Package — Relief and Recovery Fund — additional projects: to support coastal ecosystems by rebuilding shellfish reefs at shovel-ready sites around Australia to support local businesses and coastal communities affected by the summer bushfires and COVID-19 pandemic | M43: https://www.infrastructure.gov.au/department/statements/2020_2021/ministerial-statement/agriculture-water-environment.aspx#new | O43: Positive | P43: AUD | Q43: 20 | R43: 14.14042065
A44: AUS60 | B44: AUS | C44: Grant/Loan (including interest-free loans) | D44: Sectoral | E44: Air transport | F44: AUD 1.8 billion | G44: Climate Mitigation | H44: Air Pollution | L44: The Government will provide $1.8 billion over four years from 2020-21 to continue to support the aviation and tourism sectors as part of the Government's response to the COVID-19 pandemic, support transition to recovery, and stimulate tourism | M44: https://budget.gov.au/2021-22/content/bp2/download/bp2_2021-22.pdf (pag.69) | O44: Indeterminate | P44: AUD | Q44: 1800 | R44: 1272.637859
A45: AUS61 | B45: AUS | C45: Grant/Loan (including interest-free loans) | D45: Sectoral | E45: Energy | F45: AUD 58.6m | G45: Climate Mitigation | H45: Air Pollution | I45: Biodiversity | L45: Gas Led Recovery - the Government will provide $58.6 million over four years from 2021-22 to support key gas infrastructure projects, unlock new gas supply and empower gas customers. | M45: https://budget.gov.au/2021-22/content/download/glossy_covid19.pdf | N45: https://budget.gov.au/2021-22/content/bp2/download/bp2_2021-22.pdf (p. 135) | O45: negative | P45: AUD | Q45: 58.6 | R45: 41.43143251
A46: AUS62 | B46: AUS | C46: Other or not specified | D46: Sectoral | E46: Agriculture | F46: AUD 9m | G46: Climate Mitigation | H46: Biodiversity | I46: Waste & recycling | L46: $9 million to extend the Improved Access to Agricultural and Veterinary Chemicals program to help farmers to gain improved access to safe and effective agricultural and veterinary chemicals | M46: https://budget.gov.au/2021-22/content/download/glossy_jobs.pdf | O46: Indeterminate | P46: AUD | Q46: 9 | R46: 6.363189293
A47: AUS63 | B47: AUS | C47: Regulatory change | D47: Sectoral | E47: Energy | F47: AUD 50m | G47: Climate Mitigation | H47: Other | L47: The Government will provide $50.0 million over ten years from 2021-22 to establish an early stage seed capital financing function within the Australian Renewable Energy Agency (ARENA) - separate but related funding to program below. | M47: https://arena.gov.au/news/arena-welcomes-expanded-mandate-to-support-the-next-generation-of-clean-energy-technologies/ | O47: Positive | P47: AUD | Q47: 50 | R47: 35.35105163
A48: AUS64 | B48: AUS | C48: R&D subsidies | D48: Economy-wide | E48: Multiple or n.a. | F48: AUD 1.6b | G48: Climate | H48: Air Pollution | L48: Technology Investment Roadmap and Low Emissions Technology- the Government will provide $1.6 billion over ten years from 2021-22 (including $761.9 million over four years from 2021-22) to incentivise private investment in technologies identified in the Government's Technology Investment Roadmap and Low Emissions Technology Statements, grow new export industries, create jobs and reduce emissions) | M48: https://budget.gov.au/2021-22/content/resilient.htm#nine | O48: positive | P48: AUD | Q48: 1600 | R48: 1131.233652
A49: AUS65 | B49: AUS | C49: Other or not specified | D49: Sector-specific | E49: Multiple or n.a. | F49: AUD 100.1m | G49: Water | H49: Biodiversity | I49: Climate | L49: Oceans Leadership Package - the Government will provide $100.1 million over five years from 2021-22 to stimulate economic growth and jobs in the emerging blue economy while improving the environmental outcomes for key species and sites in Australia’s oceans. | M49: Australia announces $100 million initiative to protect our oceans | Prime Minister of Australia (pm.gov.au) | O49: positive | P49: AUD | Q49: 100 | R49: 70.70210326
A50: AUS66 | B50: AUS | C50: Other or not specified | D50: City/regional | E50: Multiple or n.a. | F50: AUD 11.6m | G50: Water | H50: Biodiversity | I50: Other | L50: Expanding Indigenous Protected Areas to include Sea Country | M50: https://www.niaa.gov.au/indigenous-affairs/environment/indigenous-protected-areas-ipas | O50: positive | P50: AUD | Q50: 11.6 | R50: 8.201443978
A51: AUS67 | B51: AUS | C51: Other or not specified | D51: Sector-specific | E51: Agriculture | F51: AUD 850m | G51: Climate | H51: Biodiversity | I51: Other | L51: Agriculture 2030 program - backing the backing the Australian agriculture industry to reach its goal of $100 billion in value by 2030 through various ag and environment-related projects. | M51: https://www.awe.gov.au/sites/default/files/2021-05/budget-ag2030-factsheet.pdf | O51: positive | P51: AUD | Q51: 850 | R51: 600.9678777
A52: AUS68 | B52: AUS | C52: Regulatory change | D52: Sector-specific | E52: Waste management | F52: AUD 5m | G52: Waste & recycling | H52: Plastics | I52: Biodiversity | L52: Incentivising Recycling Behaviours – Supporting small business to adopt the Australasian recycling label | M52: https://www.environment.gov.au/protection/waste/consumers/australasian-recycling-label | O52: positive | P52: AUD | Q52: 5 | R52: 3.535105163
A53: AUS69 | B53: AUS | C53: Regulatory change | D53: Sector-specific | E53: Multiple or n.a. | F53: AUD 29.3m | G53: Biodiversity | H53: Water | I53: Other | L53: Independent Review of the Environment Protection and Biodiversity Conservation Act 1999 — initial response | M53: https://budget.gov.au/2021-22/content/bp2/download/bp2_2021-22.pdf | O53: positive | P53: AUD | Q53: 29.3 | R53: 20.71571626
A54: AUS70 | B54: AUS | C54: Other or not specified | D54: Economy-wide | E54: Multiple or n.a. | F54: AUD 1.2b | G54: Climate | H54: Adaptation | I54: Other | L54: National Recovery and Resilience Agency (NRRA) establishment and related programs to improve Australia's capability to better prepare for, respond to, and recover from natural disasters - includes $280m for bushfire recovery | M54: https://budget.gov.au/2021-22/content/bp2/download/bp2_2021-22.pdf | O54: mixed | P54: AUD | Q54: 1200 | R54: 848.4252391
A55: AUS71 | B55: AUS | C55: Other or not specified | D55: Sector-specific | E55: Agriculture | F55: AUD $212.2m | G55: Adaptation | H55: Biodiversity | I55: Water | L55: Drought Response, Resilience and Preparedness Plan - the Government will provide $212.2 million over four years from 2020-21 for a package of measures to continue support for farmers and communities to manage drought | M55: https://budget.gov.au/2021-22/content/bp2/download/bp2_2021-22.pdf | O55: Positive | P55: AUD | Q55: 212.2 | R55: 150.0298631
A56: AUS72 | B56: AUS | C56: Grant/Loan (including interest-free loans) | D56: Sector-specific | E56: Multiple or n.a. | F56: AUD 5.9m | G56: Waste & recycling | H56: Plastics | I56: Biodiversity | L56: National Product Stewardship Investment Fund to further stimulate and incentivise recycling behaviours among Australian businesses and communities | M56: https://budget.gov.au/2021-22/content/bp2/download/bp2_2021-22.pdf | O56: Positive | P56: AUD | Q56: 5.9 | R56: 4.171424092
A57: AUS73 | B57: AUS | C57: Other or not specified | D57: Sector-specific | E57: Agriculture | F57: AUD $1.5b | G57: Adaptation | H57: biodiversity | I57: Water | L57: Murray-Darling Basin - the Government will provide $1.5 billion over four years from 2020-21 for a package of measures to continue efforts to achieve a sustainable and certain future for the Murray-Darling Basin (Basin), its people, industries and the environment. | M57: https://budget.gov.au/2021-22/content/bp2/download/bp2_2021-22.pdf | O57: Positive | P57: AUD | Q57: 1500 | R57: 1060.531549
A58: AUS74 | B58: AUS | C58: Other or not specified | D58: Sector-specific | E58: Energy | F58: AUD $20.1m | G58: Other | L58: The Government will provide $20.1 million over two years from 2021-22 to deliver a comprehensive Global Resources Strategy (Strategy) that supports the diversification of export markets for Australia’s resources commodities. | M58: https://budget.gov.au/2021-22/content/bp2/download/bp2_2021-22.pdf | O58: Indeterminate | P58: AUD | Q58: 20.1 | R58: 14.21112276
A59: AUS75 | B59: AUS | C59: Other or not specified | D59: Sector-specific | E59: Energy | F59: AUD $59.8m | G59: Waste & recycling | H59: Climate | I59: Air Pollution | L59: To support the Australian Nuclear Science and Technology Organisation’s waste storage capacity | M59: https://budget.gov.au/2021-22/content/bp2/download/bp2_2021-22.pdf | O59: Positive | P59: AUD | Q59: 59.8 | R59: 42.27985775
A60: AUS76 | B60: AUS | C60: Other or not specified | D60: Sector-specific | E60: Energy | F60: AUD $2.4m | G60: Waste & recycling | L60: Site selection process for the National Radioactive Waste Management Facility continues | M60: https://budget.gov.au/2021-22/content/bp2/download/bp2_2021-22.pdf | O60: Indeterminate | P60: AUD | Q60: 2.4 | R60: 1.696850478
A61: AUS77 | B61: AUS | C61: Other or not specified | D61: Sector-specific | E61: Energy | F61: AUD $50.7m | G61: Climate | H61: Air Pollution | I61: Biodiersity | L61: Oil Stocks and Refining Capacity in Australia - $50.7 million over six years from 2021-22 for the implementation and administration of the minimum stockholding obligation and the broader fuel security framework | O61: Negative | P61: AUD | Q61: 50.7 | R61: 35.84596635
A62: AUS78 | B62: AUS | C62: Other or not specified | D62: Sector-specific | E62: Energy | F62: AUD 15.7 m | G62: Climate | H62: Air Pollution | I62: Biodiersity | L62: Strategic Basin Plans inc Gas Exploration in Northern Australia to support gas industry field appraisal trials | M62: https://budget.gov.au/2021-22/content/bp2/download/bp2_2021-22.pdf | O62: Negative | P62: AUD | Q62: 15.7 | R62: 11.10023021
A63: AUS79 | B63: AUS | C63: Other or not specified | D63: City/regional | E63: Multiple or n.a. | F63: AUD 55.5m | G63: Climate | H63: Other | L63: Community Development Grants Programme — new projects — mostly infrastructure | M63: https://budget.gov.au/2021-22/content/bp2/download/bp2_2021-22.pdf | O63: Indeterminate | P63: AUD | Q63: 55.5 | R63: 39.23966731
A64: AUS80 | B64: AUS | C64: Grant/Loan (including interest-free loans) | D64: City/regional | E64: Infrastructre | F64: AUD 167.3m | G64: Climate | H64: Other | L64: Infrastructure Investment in the Australian Capital Territory - general | M64: https://budget.gov.au/2021-22/content/bp2/download/bp2_2021-22.pdf | O64: Indeterminate | P64: AUD | Q64: 167.3 | R64: 118.2846188
A65: AUS81 | B65: AUS | C65: Grant/Loan (including interest-free loans) | D65: City/regional | E65: Infrastructre | F65: AUD $3.3b | G65: Climate | H65: Other | L65: Infrastructure Investment in New South Wales - general | M65: https://budget.gov.au/2021-22/content/bp2/download/bp2_2021-22.pdf | O65: Indeterminate | P65: AUD | Q65: 3300 | R65: 2333.169408
A66: AUS82 | B66: AUS | C66: Grant/Loan (including interest-free loans) | D66: City/regional | E66: Infrastructre | F66: AUD $323.9m | G66: Climate | H66: Other | L66: Infrastructure Investment in the Northern Territory - general | M66: https://budget.gov.au/2021-22/content/bp2/download/bp2_2021-22.pdf | O66: Indeterminate | P66: AUD | Q66: 323.9 | R66: 229.0041125
A67: AUS83 | B67: AUS | C67: Grant/Loan (including interest-free loans) | D67: City/regional | E67: Infrastructre | F67: AUD $1.6b | G67: Climate | H67: Other | L67: Infrastructure Investment in Queensland - general | M67: https://budget.gov.au/2021-22/content/bp2/download/bp2_2021-22.pdf | O67: Indeterminate | P67: AUD | Q67: 1600 | R67: 1131.233652
A68: AUS84 | B68: AUS | C68: Grant/Loan (including interest-free loans) | D68: City/regional | E68: Infrastructre | F68: AUD $3.2b | G68: Climate | H68: Other | L68: Infrastructure Investment in South Australia - general | M68: https://budget.gov.au/2021-22/content/bp2/download/bp2_2021-22.pdf | O68: Indeterminate | P68: AUD | Q68: 3200 | R68: 2262.467304
A69: AUS85 | B69: AUS | C69: Grant/Loan (including interest-free loans) | D69: City/regional | E69: Infrastructre | F69: AUD 322.6m | G69: Climate | H69: Other | L69: Infrastructure Investment in Tasmania - general | M69: https://budget.gov.au/2021-22/content/bp2/download/bp2_2021-22.pdf | O69: Indeterminate | P69: AUD | Q69: 322.6 | R69: 228.0849851
A70: AUS86 | B70: AUS | C70: Grant/Loan (including interest-free loans) | D70: City/regional | E70: Infrastructre | F70: AUD $3b | G70: Climate | H70: Other | L70: Infrastructure Investment in Victoria - general | M70: https://budget.gov.au/2021-22/content/bp2/download/bp2_2021-22.pdf | O70: Indeterminate | P70: AUD | Q70: 3000 | R70: 2121.063098
A71: AUS87 | B71: AUS | C71: Grant/Loan (including interest-free loans) | D71: City/regional | E71: Infrastructre | F71: AUD $1.3b | G71: Climate | H71: Other | L71: Infrastructure Investment in Western Australia - general | M71: https://budget.gov.au/2021-22/content/bp2/download/bp2_2021-22.pdf | O71: Indeterminate | P71: AUD | Q71: 1300 | R71: 919.1273424
A72: AUS88 | B72: AUS | C72: Grant/Loan (including interest-free loans) | D72: City/regional | E72: Surface transport | F72: AUD $1b | G72: Climate | H72: Other | L72: Local Roads and Community Infrastructure Program - general | M72: https://budget.gov.au/2021-22/content/bp2/download/bp2_2021-22.pdf | O72: Indeterminate | P72: AUD | Q72: 1000 | R72: 707.0210326
A73: AUS89 | B73: AUS | C73: Grant/Loan (including interest-free loans) | D73: City/regional | E73: Surface transport | F73: AUD $348m | G73: Climate | H73: Other | L73: Supporting Regional Australia - primarily an infrastructure grants program | M73: https://budget.gov.au/2021-22/content/bp2/download/bp2_2021-22.pdf | O73: Indeterminate | P73: AUD | Q73: 348 | R73: 246.0433193
A74: AUS90 | B74: AUS | C74: Subsidy | D74: Sector-specific | E74: Buildings | F74: AUD 782.1m | G74: Climate | H74: Other | L74: Housing packacge | M74: https://budget.gov.au/2021-22/content/bp2/download/bp2_2021-22.pdf | O74: Indeterminate | P74: AUD | Q74: 782.1 | R74: 552.9611496
A75: AUS91 | B75: AUS | C75: Grant/Loan (including interest-free loans) | D75: Sectoral | E75: Buildings | F75: AUD 774.8m | G75: Biodiversity | H75: Other | L75: Extention of HomeBuilder provides eligible owner-occupiers (including first home buyers) with a grant to build a new home or substantially renovate an existing home. HomeBuilder assists the residential construction sector by encouraging the commencement of new home builds and renovations. | M75: https://treasury.gov.au/sites/default/files/2020-12/HomeBuilder_extension_factsheet.pdf | O75: Positive | P75: AUD | Q75: 774.8 | R75: 547.7998961
A76: AUS92 | B76: AUS | C76: Grant/Loan (including interest-free loans) | D76: Sectoral | E76: Waste management | F76: AUD $59.8m | G76: Waste & recycling | H76: Biodiversity | I76: Other | L76: $59.8 million over four years from 2021-22 to deliver grants in partnership with states and territories through a Food Waste for Healthy Soils Fund to enhance existing organic waste and processing infrastructure and make better use of this resource | M76: https://budget.gov.au/2021-22/content/bp2/download/bp2_2021-22.pdf | O76: Positive | P76: AUD | Q76: 59.8 | R76: 42.27985775
A77: AUS93 | B77: AUS | C77: Grant/Loan (including interest-free loans) | D77: Sectoral | E77: Multiple or n.a. | F77: AUD $160m | G77: Water | H77: Climate | L77: National Water Grid — new projects - 2 to establish the National Water Grid Connections funding pathway to deliver small scale water infrastructure projects and provide short-term economic stimulus. | M77: https://budget.gov.au/2021-22/content/bp2/download/bp2_2021-22.pdf | O77: Positive | P77: AUD | Q77: 160 | R77: 113.1233652
A78: AUS94 | B78: AUS | C78: Other or not specified | D78: Sectoral | E78: Surface transport | F78: AUD $1b | G78: Climate | H78: Air Pollution | I78: Other | L78: Road Safety Program — extension, includes: Small-scale road safety projects such as road widening, audio tactile line marking and barriers will be identified and delivered by jurisdictions in six month tranches to improve safety on Australian roads while stimulating local economies. | M78: https://budget.gov.au/2021-22/content/bp2/download/bp2_2021-22.pdf | O78: Indeterminate | P78: AUD | Q78: 1000 | R78: 707.0210326
A79: AUS95 | B79: AUS | C79: Other or not specified | D79: Sectoral | E79: Multiple or n.a. | F79: AUD $141.6m | G79: Climate | H79: Air Pollution | I79: Other | L79: Supporting Infrastructure Investment to undertake new activities which support the future of the aviation industry and improve the Commonwealth's capability to deliver infrastructure investment - including management plans for PFAS at airports | M79: https://budget.gov.au/2021-22/content/bp2/download/bp2_2021-22.pdf | O79: Indeterminate | P79: AUD | Q79: 141.6 | R79: 100.1141782
A80: AUS96 | B80: AUS | C80: Other or not specified | D80: Sectoral | E80: Multiple or n.a. | F80: AUD $89.3m | G80: Climate | H80: Other | L80: Tasmanian Freight Equalisation Scheme — imports assistance ongoing to extend the eligibility of the Tasmanian Freight Equalisation Scheme assistance to eligible imported goods with no direct Australian-made equivalent at a rate of $700 per twenty-foot equivalent unit from 1 July 2021. This will provide greater assistance to Tasmanian agriculture, forestry and fisheries, manufacturing and mining industries. | M80: https://budget.gov.au/2021-22/content/bp2/download/bp2_2021-22.pdf | O80: Indeterminate | P80: AUD | Q80: 89.3 | R80: 63.13697821
A81: AUS97 | B81: AUS | C81: Grant/Loan (including interest-free loans) | D81: Sectoral | E81: Buildings | F81: AUD 774.8m | G81: Biodiversity | L81: HomeBuilder provides eligible owner-occupiers (including first home buyers) with a grant to build a new home or substantially renovate an existing home. HomeBuilder assists the residential construction sector by encouraging the commencement of new home builds and renovations. | M81: https://treasury.gov.au/coronavirus/homebuilder | O81: Positive | P81: AUD | Q81: 774.8 | R81: 547.7998961
A82: AUS98 | B82: AUS | C82: Other or not specified | D82: Sectoral | E82: Multiple or n.a. | F82: AUD 11.6m | G82: Water | H82: Biodiversity | I82: Climate | L82: COVID-19 Response Package — supporting the Great Barrier Reef tourism industry: The Government will provide $11.6 million over three years from 2020-21 to the Great Barrier Reef Marine Park Authority to continue its world class management of the Great Barrier Reef (the Reef) whilst supporting local businesses in a region significantly impacted by the COVID-19 pandemic | M82: https://archive.budget.gov.au/2020-21/bp2/download/bp2_complete.pdf | O82: Positive | P82: AUD | Q82: 11.6 | R82: 8.201443978
A83: AUS99 | B83: AUS | C83: Other or not specified | D83: Sectoral | E83: Multiple or n.a. | F83: AUD $184.7m | G83: Air Pollution | H83: Climate | I83: Biodiversity | L83: Supporting Infrastructure Investment: the Government will provide $184.7 million over 10 years from 2020-21 to support the delivery of infrastructure investments including infrastructure stimulus as part of the Government’s economic response to COVID-19, priority infrastructure projects and city and regional deals. | M83: https://archive.budget.gov.au/2020-21/bp2/download/bp2_complete.pdf | O83: Indeterminate | P83: AUD | Q83: 184.7 | R83: 130.5867847
A84: AUS100 | B84: AUS | C84: Other or not specified | D84: Sectoral | E84: Multiple or n.a. | F84: AUD $2.0b | G84: Water | H84: Climate | L84: JobMaker Plan — National Water Grid — investing in a long-term approach to water infrastructure: The Government will provide $2.0 billion over ten years from 2020-21 for the development and delivery of a 10-year rolling program of priority water infrastructure investments that support agricultural output, increase water security and build resilience | M84: https://archive.budget.gov.au/2020-21/bp2/download/bp2_complete.pdf | O84: Positive | P84: AUD | Q84: 2000 | R84: 1414.042065
A85: AUS101 | B85: AUS | C85: Other or not specified | D85: Sectoral | E85: Surface transport | F85: AUD $1.0b | G85: Climate | H85: Other | L85: JobMaker Plan — Local Roads and Community Infrastructure Program — extension: The Government will provide $1.0 billion over two years from 2020-21 to extend the Local Roads and Community Infrastructure Program to support local councils to maintain and deliver social infrastructure, improve road safety and bolster the resilience of our local road network | M85: https://archive.budget.gov.au/2020-21/bp2/download/bp2_complete.pdf | O85: negative | P85: AUD | Q85: 1000 | R85: 707.0210326
A86: AUS102 | B86: AUS | C86: Other or not specified | D86: Sectoral | E86: Surface transport | F86: AUD $1.1b | G86: Climate | H86: Other | L86: JobMaker Plan — Infrastructure Investment — Western Australia: for priority road and rail projects in Western Australia to support economic recovery and jobs, increasing the Government’s total commitment to transport infrastructure in Western Australia to over $15.4 billion | M86: https://archive.budget.gov.au/2020-21/bp2/download/bp2_complete.pdf | O86: mixed | P86: AUD | Q86: 1100 | R86: 777.7231359
A87: AUS103 | B87: AUS | C87: Other or not specified | D87: Sectoral | E87: Surface transport | F87: AUD $1.1b | G87: Climate | H87: Other | L87: JobMaker Plan — Infrastructure Investment — Victoria: for priority road and rail projects in Victoria to support economic recovery and jobs, increasing the Government’s total commitment to transport infrastructure in Victoria to over $31.5 billion. | M87: https://archive.budget.gov.au/2020-21/bp2/download/bp2_complete.pdf | O87: Negative | P87: AUD | Q87: 1100 | R87: 777.7231359
A88: AUS104 | B88: AUS | C88: Other or not specified | D88: Sectoral | E88: Surface transport | F88: AUD $359.6m | G88: Climate | H88: Other | L88: JobMaker Plan — Infrastructure Investment — Tasmania: for priority road projects in Tasmania to support economic recovery and jobs, increasing the Government’s total commitment to transport infrastructure in Tasmania to over $3.2 billion. | M88: https://archive.budget.gov.au/2020-21/bp2/download/bp2_complete.pdf | O88: Negative | P88: AUD | Q88: 359.6 | R88: 254.2447633
A89: AUS105 | B89: AUS | C89: Other or not specified | D89: Sectoral | E89: Surface transport | F89: AUD $155.3m | G89: Climate | H89: Other | L89: JobMaker Plan — Infrastructure Investment — South Australia: for priority road and rail projects in South Australia to support economic recovery and jobs, increasing the Government’s total commitment to transport infrastructure in South Australia to over $9.8 billion | M89: https://archive.budget.gov.au/2020-21/bp2/download/bp2_complete.pdf | O89: Negative | P89: AUD | Q89: 155.3 | R89: 109.8003664
A90: AUS106 | B90: AUS | C90: Other or not specified | D90: Sectoral | E90: Surface transport | F90: AUD $2b | G90: Climate | H90: Other | L90: JobMaker Plan — Infrastructure Investment — road safety and upgrades: road safety projects such as road widening, centre lines and barriers will be identified and delivered by jurisdictions in three six-month tranches to improve safety on Australian roads while stimulating local economies. | M90: https://archive.budget.gov.au/2020-21/bp2/download/bp2_complete.pdf | O90: Negative | P90: AUD | Q90: 2000 | R90: 1414.042065
A91: AUS107 | B91: AUS | C91: Other or not specified | D91: Sectoral | E91: Surface transport | F91: AUD $1.3b | G91: Climate | H91: Other | L91: JobMaker Plan — Infrastructure Investment — Queensland: for priority road and rail projects in Queensland to support economic recovery and jobs, increasing the Government’s total commitment to transport infrastructure in Queensland to over $28.5 billion. | M91: https://archive.budget.gov.au/2020-21/bp2/download/bp2_complete.pdf | O91: mixed | P91: AUD | Q91: 1300 | R91: 919.1273424
A92: AUS108 | B92: AUS | C92: Other or not specified | D92: Sectoral | E92: Surface transport | F92: AUD $189.5m | G92: Climate | H92: Other | L92: JobMaker Plan — Infrastructure Investment — Northern Terriroty: for priority road projects in the Northern Territory to support economic recovery and jobs, increasing the Government’s total commitment to transport infrastructure in the Northern Territory to over $2.7 billion. | M92: https://archive.budget.gov.au/2020-21/bp2/download/bp2_complete.pdf | O92: Negative | P92: AUD | Q92: 189.5 | R92: 133.9804857
A93: AUS109 | B93: AUS | C93: Other or not specified | D93: Sectoral | E93: Surface transport | F93: AUD $2.7b | G93: Climate | H93: Other | L93: JobMaker Plan — Infrastructure Investment — New South Wales: for priority road and rail projects in New South Wales to support economic recovery and jobs, increasing the Government’s total commitment to transport infrastructure in New South Wales to over $39.0 billion. | M93: https://archive.budget.gov.au/2020-21/bp2/download/bp2_complete.pdf | O93: mixed | P93: AUD | Q93: 2700 | R93: 1908.956788
A94: AUS110 | B94: AUS | C94: Other or not specified | D94: Sectoral | E94: Surface transport | F94: AUD $155.3m | G94: Climate | H94: Other | L94: JobMaker Plan — Infrastructure Investment — Australian Capital Territory: for priority road projects in the Australian Capital Territory to support economic recovery and jobs, increasing the Government’s total commitment to transport infrastructure in the Australian Capital Territory to over $975.0 million. | M94: https://archive.budget.gov.au/2020-21/bp2/download/bp2_complete.pdf | O94: Negative | P94: AUD | Q94: 155.3 | R94: 109.8003664
A95: AUS111 | B95: AUS | C95: Other or not specified | D95: Sectoral | E95: air transport | F95: AUD $355.9m | G95: Climate | H95: Air Pollution | L95: COVID-19 Response Package — additional aviation support: The Government will provide additional funding of $355.9 million to support the aviation sector as part of the Government’s response to the COVID-19 pandemic. | M95: https://archive.budget.gov.au/2020-21/bp2/download/bp2_complete.pdf | O95: Negative | P95: AUD | Q95: 355.9 | R95: 251.6287855
A96: AUS112 | B96: AUS | C96: Other or not specified | D96: Sectoral | E96: Energy | F96: AUD $250.7m | G96: Climate | H96: Biodiversity | L96: JobMaker Plan — securing Australia’s liquid fuel stocks: The Government will provide $250.7 million over 10 years from 2020-21 to hold a sovereign refining capability and increase our domestic storage capabilities to secure Australia’s liquid fuel security | M96: https://archive.budget.gov.au/2020-21/bp2/download/bp2_complete.pdf | O96: Negative | P96: AUD | Q96: 250.7 | R96: 177.2501729
A97: AUS113 | B97: AUS | C97: Other or not specified | D97: Sectoral | E97: Energy | F97: AUD $1.9b | G97: Climate | H97: Air Pollution | L97: JobMaker Plan — investment in new energy technologies: to continue funding the Australian Renewable Energy Agency (ARENA), expand the investment mandate of the Clean Energy Finance Corporation (CEFC), and invest in low emissions technologies, network infrastructure, dispatchable generation and reliable supplies in the National Electricity Market (NEM) | M97: https://archive.budget.gov.au/2020-21/bp2/download/bp2_complete.pdf | O97: positive | P97: AUD | Q97: 1900 | R97: 1343.339962
A98: AUS114 | B98: AUS | C98: Other or not specified | D98: Sectoral | E98: Energy | F98: AUD $134.7m | G98: Climate | H98: Air Pollution | L98: JobMaker Plan — improving energy affordability and reliability: The Government will provide up to $134.7 million over four years from 2020-21 to support investment in dispatchable generation and reliable energy supplies in the National Electricity Market (NEM) and the Wholesale Energy Market in Western Australia. | M98: https://archive.budget.gov.au/2020-21/bp2/download/bp2_complete.pdf | O98: Indeterminate | P98: AUD | Q98: 134.7 | R98: 95.23573309
A99: AUS115 | B99: AUS | C99: Grant/Loan (including interest-free loans) | D99: Sectoral | E99: Energy | F99: AUD $52.9m | G99: Climate | H99: Air Pollution | I99: Biodiversity | L99: JobMaker Plan — gas-fired recovery: The Government will provide $52.9 million over four years from 2020-21 to support a gas-fired recovery and strengthen the economy by taking steps to unlock gas supply, deliver an efficient pipeline and transportation market, and empower gas customers. | M99: https://archive.budget.gov.au/2020-21/bp2/download/bp2_complete.pdf | O99: mixed | P99: AUD | Q99: 52.9 | R99: 37.40141262
A100: AUS116 | B100: AUS | C100: Grant/Loan (including interest-free loans) | D100: Sectoral | E100: Energy | F100: AUD $103.6m | G100: Waste & recycling | H100: Plastics | I100: Biodiversity | L100: National Radioactive Waste Management Facility program — continuation: The Government will provide $103.6 million over four years from 2020-21 to continue the National Radioactive Waste Management Facility (NRWMF) program. | M100: https://archive.budget.gov.au/2020-21/bp2/download/bp2_complete.pdf | O100: Positive | P100: AUD | Q100: 103.6 | R100: 73.24737898
A101: AUS117 | B101: AUS | C101: Grant/Loan (including interest-free loans) | D101: Sectoral | E101: Waste management | F101: AUD $10m | G101: Waste & recycling | H101: Plastics | I101: Biodiversity | L101: Growing Australia’s Waste and Recycling Capability Through Cooperative Research Centres Projects | M101: https://archive.budget.gov.au/2020-21/bp2/download/bp2_complete.pdf | O101: Positive | P101: AUD | Q101: 10 | R101: 7.070210326
A102: AUS118 | B102: AUS | C102: Other or not specified | D102: Sectoral | E102: Energy | F102: AUD $5.4m | G102: Climate | H102: Air Pollution | L102: Engagement with State and Territory Governments on Energy Reforms to enable the delivery of the 2025 market design process that will deliver the future of the National Electricity Market. | M102: https://archive.budget.gov.au/2020-21/bp2/download/bp2_complete.pdf | O102: Indeterminate | P102: AUD | Q102: 5.4 | R102: 3.817913576
A103: AUS119 | B103: AUS | C103: Other or not specified | D103: Other | E103: Multiple or n.a. | F103: AUD $47.4m | G103: Water | H103: Biodiversity | I103: Climate | L103: Supporting Healthy Oceans - The Government will provide $47.4 million over four years from 2020-21 (and $7.8 million per year ongoing) to support the health and management of Australia’s oceans. | M103: https://archive.budget.gov.au/2020-21/bp2/download/bp2_complete.pdf | O103: Positive | P103: AUD | Q103: 47.4 | R103: 33.51279695
A104: AUS120 | B104: AUS | C104: Other or not specified | D104: Sectoral | E104: Agriculture | F104: AID 269.6m | G104: Adaptation | H104: Water | I104: Biodiversity | L104: Murray-Darling Communities Investment Package - The Government will provide $269.6 million over four years from 2020-21 (and $9.8 million per year ongoing) for a package of measures to achieve a sustainable and certain future for the Murray-Darling Basin, its people, industries and environment, and in response to findings of the Independent Assessment of the Social and Economic conditions in the Murray-Darling Basin and the First Review of the Water for the Environment Special Account. | M104: https://archive.budget.gov.au/2020-21/bp2/download/bp2_complete.pdf | O104: Positive | P104: AUD | Q104: 269.6 | R104: 190.6128704
A105: AUS121 | B105: AUS | C105: Other or not specified | D105: Economy-wide | E105: Multiple or n.a. | F105: AUD $36.6m | G105: Biodiversity | H105: Climate | I105: Other | L105: Maintaining the Timeliness of the Environmental Assessment Process - the Government will provide $36.6 million over two years from 2020-21 to maintain the timeliness of environmental assessments and undertake further reforms under the Environment Protection and Biodiversity Conservation Act 1999 (EPBC Act). | M105: https://archive.budget.gov.au/2020-21/bp2/download/bp2_complete.pdf | O105: Indeterminate | P105: AUD | Q105: 36.6 | R105: 25.87696979
A106: AUS122 | B106: AUS | C106: Other or not specified | D106: Sectoral | E106: Agriculture | F106: AUD $328.4m | G106: Water | H106: Biodiversity | I106: Climate | L106: JobMaker Plan — busting congestion for agricultural exporters — improving the ease of doing business: The Government will provide $328.4 million over four years from 2020-21 for a package of measures to improve the ease of doing business for agricultural exporters | M106: https://archive.budget.gov.au/2020-21/bp2/download/bp2_complete.pdf | O106: Indeterminate | P106: AUD | Q106: 328.4 | R106: 232.1857071
A107: AUS123 | B107: AUS | C107: Other or not specified | D107: Sectoral | E107: Agriculture | F107: AUD 155.6m | G107: Adaptation | H107: Biodiversity | I107: Water | L107: Drought Response, Resilience and Preparedness Plan — extended support - The Government will provide $155.6 million over four years for a package of measures to support farmers and communities in drought | M107: https://archive.budget.gov.au/2020-21/bp2/download/bp2_complete.pdf | O107: Positive | P107: AUD | Q107: 155.6 | R107: 110.0124727
A108: AUT3 | B108: AUT | C108: Grant/Loan (including interest-free loans) | D108: Sectoral | E108: Energy | F108: EUR 260 million | G108: Climate Mitigation | H108: Air Pollution | L108: Investment in renewable energy generation expansion. Funding for 100 million roofs covered with solar panels (to further enhance progress towards 100% renewable energy generation by 2030) | O108: Positive | P108: EUR | Q108: 260 | R108: 286.6939247
A109: AUT 7 | B109: AUT | C109: Grant/Loan (including interest-free loans) | D109: Sectoral | E109: Multiple or n.a. | F109: EUR 750 million | G109: Climate Mitigation | L109: Investment premium/grant of 14% that can be obtained for climate friendly investments by companies; this includes digitalisation, investments in health, investments in nature/ecosystems; energy efficiency, renewable energies. Out of a total sum of 3 bn € of grants, 750 Mio. € are specifically used for climate-friendly green investments. | O109: Positive | P109: EUR | Q109: 750 | R109: 827.0017058
A110: AUT 8 | B110: AUT | C110: R&D subsidies | D110: Sectoral | E110: Forestry | F110: EUR 350 million | G110: Climate Mitigation | H110: Air Pollution | L110: Forest Fund aimed at funding research projects that help enhance climate adaptation of forests; this includes measures to protect and enhance biodviersity, increase the natural forest protected areas, etc… | O110: Positive | P110: EUR | Q110: 350 | R110: 385.9341294
A111: AUT 9 | B111: AUT | C111: Grant/Loan (including interest-free loans) | D111: Sectoral | E111: air transport | F111: EUR 600 million | G111: Climate Mitigation | L111: The main airline, Austrian Airlines (a daughter of Lufthansa) is to receive 300 million in form of bank credits guaranteed by the state; 150 million are flowing in form of a direct grant; 150 million are transferred via Lufthansa; the one green condition: 150 million investment for climate efficinet technologies (for ultra short distances up to 350 km an addition ticket tax of EUR 30 was agreed) | M111: https://platform2020redesign.org/countries/austria/ | O111: Mixed | P111: EUR | Q111: 600 | R111: 661.6013646
A112: AUT 10 | B112: AUT | C112: Grant/Loan (including interest-free loans) | D112: Sectoral | E112: Energy | F112: EUR 158.9 Mio | G112: Climate Mitigation | H112: Air Pollution | J112: No | K112: None | L112: 1.A.2 Exchange of oil and gas heating systems (Heating system rennovation and conversion to renewable energy sources) | M112: National Climate and Resilience Plan - https://www.oesterreich.gv.at/nachrichten/allgemein/EU-Aufbauplan.html | O112: Positive | P112: EUR | Q112: 158.9 | R112: 175.2140947
A113: AUT 11 | B113: AUT | C113: Regulatory change | D113: Sectoral | E113: Energy | F113: 0 | G113: Climate Mitigation | H113: Air Pollution | J113: No | K113: None | L113: 1.A.1 Renewable Heating Law, that aims to accelerate the phasing out of oil boilers and the roll-out of renewable heating technology | M113: National Climate and Resilience Plan - https://www.oesterreich.gv.at/nachrichten/allgemein/EU-Aufbauplan.html | O113: Positive | P113: EUR | Q113: 0 | R113: 0
A114: AUT 12 | B114: AUT | C114: Grant/Loan (including interest-free loans) | D114: Sectoral | E114: Energy | F114: EUR 50 Mio | G114: Climate Mitigation | H114: Air Pollution | J114: No | K114: None | L114: 1.A.3 Combating energy poverty (through energy efficiency measures) | M114: National Climate and Resilience Plan - https://www.oesterreich.gv.at/nachrichten/allgemein/EU-Aufbauplan.html | O114: Positive | P114: EUR | Q114: 50 | R114: 55.13344705
A115: AUT 13 | B115: AUT | C115: Regulatory change | D115: Sectoral | E115: Surface transport | F115: 0 | G115: Climate Mitigation | H115: Air Pollution | J115: No | K115: None | L115: 1.B.1 Release of a new comprehensive Mobility Masterplan 2030 that will frame various sector-specific strategies and actions that are necessary to bring about a permanent and continuous reduction in transport-related CO2 emissions | M115: National Climate and Resilience Plan - https://www.oesterreich.gv.at/nachrichten/allgemein/EU-Aufbauplan.html | O115: Positive | P115: EUR | Q115: 0 | R115: 0
A116: AUT 14 | B116: AUT | C116: Regulatory change | D116: Sectoral | E116: Surface transport | F116: 0 | G116: Climate Mitigation | H116: Air Pollution | J116: No | K116: None | L116: 1.B.2 Introduction of 1-2-3 Climate ticket that will facilitate the modal shift towards rail and public transport | M116: National Climate and Resilience Plan - https://www.oesterreich.gv.at/nachrichten/allgemein/EU-Aufbauplan.html | O116: Positive | P116: EUR | Q116: 0 | R116: 0
A117: AUT 15 | B117: AUT | C117: Grant/Loan (including interest-free loans) | D117: Sectoral | E117: Surface transport | F117: EUR 256 Mio | G117: Climate Mitigation | H117: Air Pollution | J117: No | K117: None | L117: 1.B.3 Zero-emission buses | M117: National Climate and Resilience Plan - https://www.oesterreich.gv.at/nachrichten/allgemein/EU-Aufbauplan.html | O117: Positive | P117: EUR | Q117: 256 | R117: 282.2832489
A118: AUT 16 | B118: AUT | C118: Grant/Loan (including interest-free loans) | D118: Sectoral | E118: Surface transport | F118: EUR 50 Mio | G118: Climate Mitigation | H118: Air Pollution | J118: No | K118: None | L118: 1.B.4 Zero-emission commercial vehicles, used for the transport of persons, goods, or for towing trailers | M118: National Climate and Resilience Plan - https://www.oesterreich.gv.at/nachrichten/allgemein/EU-Aufbauplan.html | O118: Positive | P118: EUR | Q118: 50 | R118: 55.13344705
A119: AUT 17 | B119: AUT | C119: Grant/Loan (including interest-free loans) | D119: Sectoral | E119: Surface transport | F119: EUR 542.6 Mio | G119: Climate Mitigation | H119: Air Pollution | J119: No | K119: None | L119: 1.B.5 Construction of new railway lines and electrification of regional railways | M119: National Climate and Resilience Plan - https://www.oesterreich.gv.at/nachrichten/allgemein/EU-Aufbauplan.html | O119: Positive | P119: EUR | Q119: 542.6 | R119: 598.3081674
A120: AUT 18 | B120: AUT | C120: Regulatory change | D120: Sectoral | E120: Waste management | F120: 0 | G120: Climate Mitigation | H120: Waste & recycling | I120: Plastics | J120: No | K120: None | L120: 1.C.1 introduction of framework that strengthens the collection, prevention and sorting of waste | M120: National Climate and Resilience Plan - https://www.oesterreich.gv.at/nachrichten/allgemein/EU-Aufbauplan.html | O120: Positive | P120: EUR | Q120: 0 | R120: 0
A121: AUT 19 | B121: AUT | C121: Grant/Loan (including interest-free loans) | D121: Economy-wide | E121: Multiple or n.a. | F121: EUR 50 Mio | G121: Biodiversity | J121: No | K121: None | L121: 1.C.2 Biodiversity fund | M121: National Climate and Resilience Plan - https://www.oesterreich.gv.at/nachrichten/allgemein/EU-Aufbauplan.html | O121: Positive | P121: EUR | Q121: 50 | R121: 55.13344705
A122: AUT 20 | B122: AUT | C122: Grant/Loan (including interest-free loans) | D122: Economy-wide | E122: Multiple or n.a. | F122: EUR 110 Mio | G122: Climate Mitigation | H122: Waste & recycling | I122: Plastics | J122: No | K122: None | L122: 1.C.3 Investments in reverse vending systems and measures to increase the reuse quota of beverage containers | M122: National Climate and Resilience Plan - https://www.oesterreich.gv.at/nachrichten/allgemein/EU-Aufbauplan.html | O122: Positive | P122: EUR | Q122: 110 | R122: 121.2935835
A123: AUT 21 | B123: AUT | C123: Grant/Loan (including interest-free loans) | D123: Economy-wide | E123: Multiple or n.a. | F123: EUR 60 Mio | G123: Climate Mitigation | H123: Waste & recycling | I123: Plastics | J123: No | K123: None | L123: 1.C.4 Retrofitting of existing and construction of new sorting facilities | M123: National Climate and Resilience Plan - https://www.oesterreich.gv.at/nachrichten/allgemein/EU-Aufbauplan.html | O123: Positive | P123: EUR | Q123: 60 | R123: 66.16013646
A124: AUT 22 | B124: AUT | C124: Grant/Loan (including interest-free loans) | D124: Economy-wide | E124: Multiple or n.a. | F124: EUR 130 Mio | G124: Climate Mitigation | H124: Waste & recycling | I124: Plastics | J124: No | K124: None | L124: 1.C.5 Promotion of the repairing of electrical and electronic equipment (repair bonus) | M124: National Climate and Resilience Plan - https://www.oesterreich.gv.at/nachrichten/allgemein/EU-Aufbauplan.html | O124: Positive | P124: EUR | Q124: 130 | R124: 143.3469623
A125: AUT 23 | B125: AUT | C125: Regulatory change | D125: Sectoral | E125: Energy | F125: 0 | G125: Climate Mitigation | H125: Air Pollution | J125: No | K125: None | L125: 1.D.1 framework to extend Austria’s renewables production capacity | M125: National Climate and Resilience Plan - https://www.oesterreich.gv.at/nachrichten/allgemein/EU-Aufbauplan.html | O125: Positive | P125: EUR | Q125: 0 | R125: 0
A126: AUT 24 | B126: AUT | C126: Grant/Loan (including interest-free loans) | D126: Sectoral | E126: Industry | F126: EUR 100 Mio | G126: Climate Mitigation | H126: Air Pollution | J126: No | K126: None | L126: 1.D.2 Transforming industry towards climate neutrality | M126: National Climate and Resilience Plan - https://www.oesterreich.gv.at/nachrichten/allgemein/EU-Aufbauplan.html | O126: Positive | P126: EUR | Q126: 100 | R126: 110.2668941
A127: AUT 25 | B127: AUT | C127: Grant/Loan (including interest-free loans) | D127: Economy-wide | E127: Multiple or n.a. | F127: EUR 504 Mio | G127: Climate Mitigation | H127: Air Pollution | J127: No | K127: None | L127: 2.D.3 Green investments in enterprises | M127: National Climate and Resilience Plan - https://www.oesterreich.gv.at/nachrichten/allgemein/EU-Aufbauplan.html | O127: Positive | P127: EUR | Q127: 504 | R127: 555.7451463
A128: AUT 26 | B128: AUT | C128: R&D subsidies | D128: Economy-wide | E128: Multiple or n.a. | F128: EUR 125 Mio | G128: Climate Mitigation | H128: Air Pollution | J128: No | K128: None | L128: 3.D.1 Participation in Research and Innovation Projects of Common European Interest for Microelectronics and Connectivity, to promote the production of semi conductors for renewable energy application | M128: National Climate and Resilience Plan - https://www.oesterreich.gv.at/nachrichten/allgemein/EU-Aufbauplan.html | O128: Positive | P128: EUR | Q128: 125 | R128: 137.8336176
A129: AUT 27 | B129: AUT | C129: R&D subsidies | D129: Economy-wide | E129: Multiple or n.a. | F129: EUR 125 Mio | G129: Climate Mitigation | H129: Air Pollution | J129: No | K129: None | L129: 3.D.2 Participation in Research and Innovation Projects of Common European Interest for Hydrogen, to promote innovation in industrial hydrogen uses | M129: National Climate and Resilience Plan - https://www.oesterreich.gv.at/nachrichten/allgemein/EU-Aufbauplan.html | O129: Positive | P129: EUR | Q129: 125 | R129: 137.8336176
A130: AUT 28 | B130: AUT | C130: Grant/Loan (including interest-free loans) | D130: Economy-wide | E130: Multiple or n.a. | F130: EUR 50 Mio | G130: Climate Mitigation | H130: Air Pollution | I130: Adaptation | J130: No | K130: None | L130: 4.B.3 Investment in climate-friendly town centres | M130: National Climate and Resilience Plan - https://www.oesterreich.gv.at/nachrichten/allgemein/EU-Aufbauplan.html | O130: Positive | P130: EUR | Q130: 50 | R130: 55.13344705
A131: AUT 29 | B131: AUT | C131: Grant/Loan (including interest-free loans) | D131: Sectoral | E131: Buildings | F131: EUR 35 Mio | G131: Climate Mitigation | H131: Air Pollution | J131: No | K131: None | L131: 4.C.3 Renovation of Volkskundemuseum Wien and Prater Ateliers – energy efficiency measures | M131: National Climate and Resilience Plan - https://www.oesterreich.gv.at/nachrichten/allgemein/EU-Aufbauplan.html | O131: Positive | P131: EUR | Q131: 35 | R131: 38.59341294
A132: AUT 30 | B132: AUT | C132: Grant/Loan (including interest-free loans) | D132: Sectoral | E132: Multiple or n.a. | F132: EUR 15 Mio | G132: Climate Mitigation | H132: Air Pollution | J132: No | K132: None | L132: 4.C.5 Investment fund for climate-friendly cultural businesses | M132: National Climate and Resilience Plan - https://www.oesterreich.gv.at/nachrichten/allgemein/EU-Aufbauplan.html | O132: Positive | P132: EUR | Q132: 15 | R132: 16.54003412
A133: BEL1 | B133: BEL | C133: Other or not specified | D133: City/regional | E133: Multiple or n.a. | F133: 700 million | G133: Climate Mitigation | H133: Waste & recycling | I133: Other | L133: Flanders has put together a relance plan (Flemish resilience - Vlaamse veerkracht) for a total budget of 4,3 billion euro (5 billion $). It is an economy-wide plan that focuses on 7 pillars (so roughly said 700 million $ per pillar). One of the seven pillars is Climate, Sustainability and Innovation. Key focal points for innovation are: CO2 captation in harbours, biogas and bio-based products, hydrogen, blue deal for drought management, renovation of buildings, greening the modal shift (bicycle lanes, car sharing, bike sharing, ...), transition to the circular economy. | M133: https://www.vlaanderen.be/publicaties/relanceplan-vlaamse-regering-vlaamse-veerkracht | N133: https://www.vlaio.be/nl/nieuws/43-miljard-euro-voor-relanceplan-vlaamse-veerkracht | O133: Mixed | P133: EUR | Q133: 700 | R133: 771.8682588
A134: BEL2 | B134: BEL | C134: Other or not specified | D134: City/regional | E134: Multiple or n.a. | G134: Climate Mitigation | H134: Biodiversity | L134: Brussels has put together a Relance and redevelopment Plan (Relance- en herontwikkelingsplan voor Brussel - Plan de relance et de redéploiment de RBC). One out of the three pillars concerns urban planning and environment. Focal points are: cycling paths, renovation of buildings and the procurement of an area to foster biodiversity in urban context. The total budget concerns 120 million € but is mainly focused on short term relance and econmic survival measures. The medium term priorities and almost all environmental measures still need to be developed. | M134: https://rudivervoort.brussels/wp-content/uploads/2020/07/Plan-de-relance-Dossier-de-presse-NL.pdf | N134: https://www.voka.be/nieuws/brussels-herstelplan-eerste-stap-relance | O134: Mixed
A135: BEL3 | B135: BEL | C135: Grant/Loan (including interest-free loans) | D135: City/regional | E135: Buildings | F135: 12 million | G135: Climate Mitigation | L135: In the Relance and Redevelopment plan discussed above, there is a measure to enhance renovation of buildings: 8 million euros goes energy saving subsidies and 2 million goes to support for landlords that are planning a renovation. | M135: https://www.voka.be/nieuws/brussels-herstelplan-eerste-stap-relance | O135: Positive | P135: EUR | Q135: 12 | R135: 13.23202729
A136: BEL4 | B136: BEL | C136: Other or not specified | D136: City/regional | E136: Multiple or n.a. | G136: Climate Mitigation | H136: Biodiversity | I136: Waste & recycling | L136: Wallonia has launched the 'Get Up Wallonia' plan. It has an economy-wide focus with sustainability as one of the three pillars. A processus involving a range of experts and stakeholders should lead to concrete relance measures and an analysis of the budgetary impacts in the first quarter of 2021. | M136: https://gouvernement.wallonie.be/files/%255BNote%20du%20Gouvernement%20de%20Wallonie%255D%20-%20Get%20up%20Wallonia%20!.pdf | N136: https://www.lecho.be/economie-politique/belgique/wallonie/le-covid-ne-peut-servir-de-paravent-a-la-relance-de-la-wallonie/10256438.html | O136: Positive
A137: BEL5 | B137: BEL | C137: Other or not specified | D137: Economy-wide | E137: Multiple or n.a. | G137: Climate Mitigation | H137: Waste & recycling | I137: Biodiversity | L137: The new Belgian government (October 2020) has included Green Relance as one of its six pillars for its governmental agreement (Regeringsakkoord). The measures still have to be made concrete. | M137: https://www.belgium.be/sites/default/files/Regeerakkoord_2020.pdf | O137: Indeterminate
A138: BEL6 | B138: BEL | C138: Tax reduction / Other subsidy | D138: Sectoral | E138: Buildings | F138: EUR 191 million | G138: Climate Mitigation | L138: The Value Added Tax for Demolition and Reconstruction will be reduced from 21% to 6% to speed up energy savings in residential buildings in Belgium. | M138: https://www.belgium.be/sites/default/files/Regeerakkoord_2020.pdf | N138: https://www.tijd.be/netto/analyse/vastgoed/strikte-regels-voor-sloop-en-heropbouw-aan-6-procent-btw/10257614.html | O138: Mixed | P138: EUR | Q138: 191 | R138: 210.6097677
A139: BEL7 | B139: BEL | C139: Tax reduction / Other subsidy | D139: Sectoral | E139: Forestry | F139: EUR 23 millions | G139: Biodiversity | L139: Increase with 20% of salary fraction that can be deducted for donations: from 45% to 60%. The measure applies to all registered charities including charities that purchase and restore nature. | M139: https://financien.belgium.be/nl/particulieren/belastingvoordelen/giften#q3 | O139: Positive | P139: EUR | Q139: 23 | R139: 25.36138564
A140: BEL8 | B140: BEL | C140: Tax reduction / other subsidy | D140: Economy-wide | E140: Multiple or n.a. | F140: EUR 203 millions | L140: Increase of the investment deduction percentage to 25% for investments made between 12/03/2020 and 31/12/2022 | M140: Loi-programme du 20/12/2020 https://finances.belgium.be/fr/loi-programme/augmentation-deduction-investissement | O140: Indeterminate | P140: EUR | Q140: 203 | R140: 223.841795
A141: BEL9 | B141: BEL | C141: Tax reduction / Other subsidy | D141: City/regional | E141: Waste management | F141: EUR 40 millions | G141: Waste & recycling | L141: Asbestos removal policy in Flanders (subsidies for removal & treatment) | O141: Positive | P141: EUR | Q141: 40 | R141: 44.10675764
A142: BEL11 | B142: BEL | C142: Other or not specified | D142: City/regional | E142: Waste management | F142: EUR 1.95 millions | G142: Waste & recycling | L142: Digital mapping of material flows in Flanders | O142: Indeterminate | P142: EUR | Q142: 1.95 | R142: 2.150204435
A143: BEL14 | B143: BEL | C143: Tax reduction / other subsidy | D143: City/regional | E143: Energy | F143: EUR 20.35 Mio | G143: Climate Mitigation | H143: Air Pollution | J143: No | K143: None | L143: Improved energy subsidy scheme of the Flemish Region (investment part) – smart control | M143: EU assessed national recovery and resilience plan - https://eur-lex.europa.eu/legal-content/EN/TXT/?uri=CELEX%3A52021SC0172&qid=1624626286892 | O143: Positive | P143: EUR | Q143: 20.35 | R143: 22.43931295
A144: BEL15 | B144: BEL | C144: Tax reduction / other subsidy | D144: City/regional | E144: Energy | F144: EUR 212.97 Mio | G144: Climate Mitigation | H144: Air Pollution | J144: No | K144: None | L144: Improved energy subsidy scheme of the Flemish Region (investment part) – (except smart control) | M144: EU assessed national recovery and resilience plan - https://eur-lex.europa.eu/legal-content/EN/TXT/?uri=CELEX%3A52021SC0172&qid=1624626286892 | O144: Positive | P144: EUR | Q144: 212.97 | R144: 234.8354044
A145: BEL16 | B145: BEL | C145: Tax reduction / other subsidy | D145: City/regional | E145: Energy | F145: EUR 16 Mio | G145: Climate Mitigation | H145: Air Pollution | J145: No | K145: None | L145: Improved energy subsidy scheme (investment part) – Brussels-Capital region | M145: EU assessed national recovery and resilience plan - https://eur-lex.europa.eu/legal-content/EN/TXT/?uri=CELEX%3A52021SC0172&qid=1624626286892 | O145: Positive | P145: EUR | Q145: 16 | R145: 17.64270306
A146: BEL17 | B146: BEL | C146: Tax reduction / other subsidy | D146: City/regional | E146: Energy | F146: EUR 5 Mio | G146: Climate Mitigation | H146: Air Pollution | J146: No | K146: None | L146: Improved energy subsidy scheme (investment part) – German-speaking community | M146: EU assessed national recovery and resilience plan - https://eur-lex.europa.eu/legal-content/EN/TXT/?uri=CELEX%3A52021SC0172&qid=1624626286892 | O146: Positive | P146: EUR | Q146: 5 | R146: 5.513344705
A147: BEL18 | B147: BEL | C147: Tax reduction / other subsidy | D147: City/regional | E147: Buildings | F147: EUR 30 Mio | G147: Climate Mitigation | H147: Air Pollution | J147: No | K147: None | L147: Renovation of social housing of the Flemish Region | M147: EU assessed national recovery and resilience plan - https://eur-lex.europa.eu/legal-content/EN/TXT/?uri=CELEX%3A52021SC0172&qid=1624626286892 | O147: Positive | P147: EUR | Q147: 30 | R147: 33.08006823
A148: BEL19 | B148: BEL | C148: Grant/Loan (including interest-free loans) | D148: City/regional | E148: Buildings | F148: EUR 5 Mio | G148: Climate Mitigation | H148: Air Pollution | J148: No | K148: None | L148: Renovation of social housing of the Flemish Region | M148: EU assessed national recovery and resilience plan - https://eur-lex.europa.eu/legal-content/EN/TXT/?uri=CELEX%3A52021SC0172&qid=1624626286892 | O148: Positive | P148: EUR | Q148: 5 | R148: 5.513344705
A149: BEL20 | B149: BEL | C149: Tax reduction / other subsidy | D149: City/regional | E149: Buildings | F149: EUR 43.44 Mio | G149: Climate Mitigation | H149: Air Pollution | J149: No | K149: None | L149: Renovation of social housing of the BrusselsCapital Region | M149: EU assessed national recovery and resilience plan - https://eur-lex.europa.eu/legal-content/EN/TXT/?uri=CELEX%3A52021SC0172&qid=1624626286892 | O149: Positive | P149: EUR | Q149: 43.44 | R149: 47.8999388
A150: BEL21 | B150: BEL | C150: Tax reduction / other subsidy | D150: City/regional | E150: Buildings | F150: EUR 20 Mio | G150: Climate Mitigation | H150: Air Pollution | J150: No | K150: None | L150: Renovation of social and residential housing of the German-speaking Community | M150: EU assessed national recovery and resilience plan - https://eur-lex.europa.eu/legal-content/EN/TXT/?uri=CELEX%3A52021SC0172&qid=1624626286892 | O150: Positive | P150: EUR | Q150: 20 | R150: 22.05337882
A151: BEL22 | B151: BEL | C151: Tax reduction / other subsidy | D151: City/regional | E151: Buildings | F151: EUR 6.32 Mio | G151: Climate Mitigation | H151: Air Pollution | J151: No | K151: None | L151: Renovation of the Palais de la Bourse – Federal State - energy efficiency measures | M151: EU assessed national recovery and resilience plan - https://eur-lex.europa.eu/legal-content/EN/TXT/?uri=CELEX%3A52021SC0172&qid=1624626286892 | O151: Positive | P151: EUR | Q151: 6.32 | R151: 6.968867708
A152: BEL23 | B152: BEL | C152: Tax reduction / other subsidy | D152: City/regional | E152: Buildings | F152: EUR 20 Mio | G152: Climate Mitigation | H152: Air Pollution | J152: No | K152: None | L152: Renovation of public buildings – Flemish Region | M152: EU assessed national recovery and resilience plan - https://eur-lex.europa.eu/legal-content/EN/TXT/?uri=CELEX%3A52021SC0172&qid=1624626286892 | O152: Positive | P152: EUR | Q152: 20 | R152: 22.05337882
A153: BEL24 | B153: BEL | C153: Tax reduction / other subsidy | D153: City/regional | E153: Buildings | F153: EUR 59.54 Mio | G153: Climate Mitigation | H153: Air Pollution | J153: No | K153: None | L153: Public building renovations – Walloon Region | M153: EU assessed national recovery and resilience plan - https://eur-lex.europa.eu/legal-content/EN/TXT/?uri=CELEX%3A52021SC0172&qid=1624626286892 | O153: Positive | P153: EUR | Q153: 59.54 | R153: 65.65290875
A154: BEL25 | B154: BEL | C154: Tax reduction / other subsidy | D154: City/regional | E154: Buildings | F154: EUR 73 Mio | G154: Climate Mitigation | H154: Air Pollution | J154: No | K154: None | L154: Public building renovations - Walloon Region – local authorities | M154: EU assessed national recovery and resilience plan - https://eur-lex.europa.eu/legal-content/EN/TXT/?uri=CELEX%3A52021SC0172&qid=1624626286892 | O154: Positive | P154: EUR | Q154: 73 | R154: 80.4948327
A155: BEL26 | B155: BEL | C155: Tax reduction / other subsidy | D155: City/regional | E155: Buildings | F155: EUR 55.18 Mio | G155: Climate Mitigation | H155: Air Pollution | J155: No | K155: None | L155: Public building renovations - Walloon Region - sport (energy efficiency related works) | M155: EU assessed national recovery and resilience plan - https://eur-lex.europa.eu/legal-content/EN/TXT/?uri=CELEX%3A52021SC0172&qid=1624626286892 | O155: Positive | P155: EUR | Q155: 55.18 | R155: 60.84527217
A156: BEL27 | B156: BEL | C156: Tax reduction / other subsidy | D156: City/regional | E156: Buildings | F156: EUR 32 Mio | G156: Climate Mitigation | H156: Air Pollution | J156: No | K156: None | L156: Public building renovations - Brussels-Capital region | M156: EU assessed national recovery and resilience plan - https://eur-lex.europa.eu/legal-content/EN/TXT/?uri=CELEX%3A52021SC0172&qid=1624626286892 | O156: Positive | P156: EUR | Q156: 32 | R156: 35.28540611
A157: BEL28 | B157: BEL | C157: Tax reduction / other subsidy | D157: City/regional | E157: Buildings | F157: EUR 71.66 Mio | G157: Climate Mitigation | H157: Air Pollution | J157: No | K157: None | L157: School renovation – Federation WalloniaBrussels - energy efficiency related construction and renovation works | M157: EU assessed national recovery and resilience plan - https://eur-lex.europa.eu/legal-content/EN/TXT/?uri=CELEX%3A52021SC0172&qid=1624626286892 | O157: Positive | P157: EUR | Q157: 71.66 | R157: 79.01725632
A158: BEL29 | B158: BEL | C158: Tax reduction / other subsidy | D158: City/regional | E158: Buildings | F158: EUR 23.60 Mio | G158: Climate Mitigation | H158: Air Pollution | J158: No | K158: None | L158: School renovation – Federation WalloniaBrussels - energy efficiency related works achieving at least 30% average primary energy demand reduction (medium-deep) | M158: EU assessed national recovery and resilience plan - https://eur-lex.europa.eu/legal-content/EN/TXT/?uri=CELEX%3A52021SC0172&qid=1624626286892 | O158: Positive | P158: EUR | Q158: 23.6 | R158: 26.02298701
A159: BEL30 | B159: BEL | C159: Tax reduction / other subsidy | D159: City/regional | E159: Buildings | F159: EUR 21.07 Mio | G159: Climate Mitigation | H159: Air Pollution | J159: No | K159: None | L159: Public building renovations - sport & IPPJ - Federation Wallonia-Brussels - ADEPS et IPPJ (energy efficiency related works) | M159: EU assessed national recovery and resilience plan - https://eur-lex.europa.eu/legal-content/EN/TXT/?uri=CELEX%3A52021SC0172&qid=1624626286892 | O159: Positive | P159: EUR | Q159: 21.07 | R159: 23.23323459
A160: BEL31 | B160: BEL | C160: Tax reduction / other subsidy | D160: City/regional | E160: Buildings | F160: EUR 15 Mio | G160: Climate Mitigation | H160: Air Pollution | J160: No | K160: None | L160: Public building renovations - universities - Federation Wallonia-Brussels (share allowing at least 30% average primary energy demand reduction) | M160: EU assessed national recovery and resilience plan - https://eur-lex.europa.eu/legal-content/EN/TXT/?uri=CELEX%3A52021SC0172&qid=1624626286892 | O160: Positive | P160: EUR | Q160: 15 | R160: 16.54003412
A161: BEL32 | B161: BEL | C161: Tax reduction / other subsidy | D161: City/regional | E161: Buildings | F161: EUR 25 Mio | G161: Climate Mitigation | H161: Air Pollution | J161: No | K161: None | L161: Public building renovations - universities - Federation Wallonia-Brussels (energy efficiency related works) | M161: EU assessed national recovery and resilience plan - https://eur-lex.europa.eu/legal-content/EN/TXT/?uri=CELEX%3A52021SC0172&qid=1624626286892 | O161: Positive | P161: EUR | Q161: 25 | R161: 27.56672353
A162: BEL33 | B162: BEL | C162: Tax reduction / other subsidy | D162: City/regional | E162: Buildings | F162: EUR 20.68 Mio | G162: Climate Mitigation | H162: Air Pollution | J162: No | K162: None | L162: Public building renovations - culture - Federation Wallonia-Brussels (share allowing at least 30% average primary energy demand reduction) | M162: EU assessed national recovery and resilience plan - https://eur-lex.europa.eu/legal-content/EN/TXT/?uri=CELEX%3A52021SC0172&qid=1624626286892 | O162: Positive | P162: EUR | Q162: 20.68 | R162: 22.8031937
A163: BEL34 | B163: BEL | C163: Tax reduction / other subsidy | D163: City/regional | E163: Buildings | F163: EUR 18.64 Mio | G163: Climate Mitigation | H163: Air Pollution | J163: No | K163: None | L163: Public building renovations - culture - Federation Wallonia-Brussels (energy efficiency related works) | M163: EU assessed national recovery and resilience plan - https://eur-lex.europa.eu/legal-content/EN/TXT/?uri=CELEX%3A52021SC0172&qid=1624626286892 | O163: Positive | P163: EUR | Q163: 18.64 | R163: 20.55374906
A164: BEL35 | B164: BEL | C164: Tax reduction / other subsidy | D164: Sectoral | E164: Buildings | F164: EUR 13.43 Mio | G164: Climate Mitigation | H164: Air Pollution | J164: No | K164: None | L164: Renovation of buildings - Renolab, to promote renovation projects and illustrate best practices | M164: EU assessed national recovery and resilience plan - https://eur-lex.europa.eu/legal-content/EN/TXT/?uri=CELEX%3A52021SC0172&qid=1624626286892 | O164: Positive | P164: EUR | Q164: 13.43 | R164: 14.80884388
A165: BEL36 | B165: BEL | C165: Tax reduction / other subsidy | D165: Sectoral | E165: Energy | F165: EUR 95 Mio | G165: Climate Mitigation | H165: Air Pollution | J165: No | K165: None | L165: Investment project Backbone for H2 and CO2, to create future interconnections with neighbouring countries of the initial H2 and CO2 transport networks | M165: EU assessed national recovery and resilience plan - https://eur-lex.europa.eu/legal-content/EN/TXT/?uri=CELEX%3A52021SC0172&qid=1624626286892 | O165: Positive | P165: EUR | Q165: 95 | R165: 104.7535494
A166: BEL37 | B166: BEL | C166: Tax reduction / other subsidy | D166: Economy-wide | E166: Energy | F166: EUR 50 Mio | G166: Climate Mitigation | H166: Air Pollution | J166: No | K166: None | L166: An industrial value chain for hydrogen transition - Federal State | M166: EU assessed national recovery and resilience plan - https://eur-lex.europa.eu/legal-content/EN/TXT/?uri=CELEX%3A52021SC0172&qid=1624626286892 | O166: Positive | P166: EUR | Q166: 50 | R166: 55.13344705
A167: BEL38 | B167: BEL | C167: R&D subsidies | D167: City/regional | E167: Energy | F167: EUR 47,86 Mio | G167: Climate Mitigation | H167: Air Pollution | J167: No | K167: None | L167: An industrial value chain for hydrogen transition of the Flemish Region - R&D&I projects | M167: EU assessed national recovery and resilience plan - https://eur-lex.europa.eu/legal-content/EN/TXT/?uri=CELEX%3A52021SC0172&qid=1624626286892 | O167: Positive | P167: EUR | Q167: 47.86 | R167: 52.77373552
A168: BEL39 | B168: BEL | C168: Tax reduction / other subsidy | D168: City/regional | E168: Energy | F168: EUR 27.39 Mio | G168: Climate Mitigation | H168: Air Pollution | J168: No | K168: None | L168: An industrial value chain for hydrogen transition of the Flemish Region - production from renewable energy | M168: EU assessed national recovery and resilience plan - https://eur-lex.europa.eu/legal-content/EN/TXT/?uri=CELEX%3A52021SC0172&qid=1624626286892 | O168: Positive | P168: EUR | Q168: 27.39 | R168: 30.2021023
A169: BEL40 | B169: BEL | C169: Tax reduction / other subsidy | D169: City/regional | E169: Energy | F169: EUR 36.54 Mio | G169: Climate Mitigation | H169: Air Pollution | J169: No | K169: None | L169: An industrial value chain for hydrogen transition of the Flemish Region - transmission, distribution, storage and energy systems | M169: EU assessed national recovery and resilience plan - https://eur-lex.europa.eu/legal-content/EN/TXT/?uri=CELEX%3A52021SC0172&qid=1624626286892 | O169: Positive | P169: EUR | Q169: 36.54 | R169: 40.29152311
A170: BEL41 | B170: BEL | C170: Tax reduction / other subsidy | D170: City/regional | E170: Energy | F170: EUR 8.07 Mio | G170: Climate Mitigation | H170: Air Pollution | J170: No | K170: None | L170: An industrial value chain for hydrogen transition of the Flemish Region - end user refuelling & transport | M170: EU assessed national recovery and resilience plan - https://eur-lex.europa.eu/legal-content/EN/TXT/?uri=CELEX%3A52021SC0172&qid=1624626286892 | O170: Positive | P170: EUR | Q170: 8.07 | R170: 8.898538354
A171: BEL42 | B171: BEL | C171: Tax reduction / other subsidy | D171: City/regional | E171: Energy | F171: EUR 5.15 Mio | G171: Climate Mitigation | H171: Air Pollution | J171: No | K171: None | L171: An industrial value chain for hydrogen transition of the Flemish Region - end user industrial | M171: EU assessed national recovery and resilience plan - https://eur-lex.europa.eu/legal-content/EN/TXT/?uri=CELEX%3A52021SC0172&qid=1624626286892 | O171: Positive | P171: EUR | Q171: 5.15 | R171: 5.678745047
A172: BEL43 | B172: BEL | C172: Tax reduction / other subsidy | D172: City/regional | E172: Energy | F172: EUR 117.20 Mio | G172: Climate Mitigation | H172: Air Pollution | J172: No | K172: None | L172: An industrial value chain for hydrogen transition’ of the Walloon Region – IPCEI and non IPCEI projects | M172: EU assessed national recovery and resilience plan - https://eur-lex.europa.eu/legal-content/EN/TXT/?uri=CELEX%3A52021SC0172&qid=1624626286892 | O172: Positive | P172: EUR | Q172: 117.2 | R172: 129.2327999
A173: BEL44 | B173: BEL | C173: R&D subsidies | D173: City/regional | E173: Industry | F173: EUR 50 Mio | G173: Climate Mitigation | H173: Air Pollution | J173: No | K173: None | L173: Developing the low-carbon industry of the Walloon Region –R&D&I projects, to reduce emissions in connectionto energy usage and emissions in industry | M173: EU assessed national recovery and resilience plan - https://eur-lex.europa.eu/legal-content/EN/TXT/?uri=CELEX%3A52021SC0172&qid=1624626286892 | O173: Positive | P173: EUR | Q173: 50 | R173: 55.13344705
A174: BEL45 | B174: BEL | C174: R&D subsidies | D174: City/regional | E174: Energy | F174: EUR 26.44 Mio | G174: Climate Mitigation | H174: Air Pollution | J174: No | K174: None | L174: Research platform for energy transition of the Walloon Region | M174: EU assessed national recovery and resilience plan - https://eur-lex.europa.eu/legal-content/EN/TXT/?uri=CELEX%3A52021SC0172&qid=1624626286892 | O174: Positive | P174: EUR | Q174: 26.44 | R174: 29.1545668
A175: BEL46 | B175: BEL | C175: Tax reduction / other subsidy | D175: City/regional | E175: Energy | F175: EUR 44.30 Mio | G175: Climate Mitigation | H175: Air Pollution | J175: No | K175: None | L175: Support of investments to establish renewable heat networks of the Flemish Region | M175: EU assessed national recovery and resilience plan - https://eur-lex.europa.eu/legal-content/EN/TXT/?uri=CELEX%3A52021SC0172&qid=1624626286892 | O175: Positive | P175: EUR | Q175: 44.3 | R175: 48.84823409
A176: BEL47 | B176: BEL | C176: Tax reduction / other subsidy | D176: Sectoral | E176: Energy | F176: EUR 99 Mio | G176: Climate Mitigation | H176: Air Pollution | J176: No | K176: None | L176: Support to establish off-shore energy islands, projects | M176: EU assessed national recovery and resilience plan - https://eur-lex.europa.eu/legal-content/EN/TXT/?uri=CELEX%3A52021SC0172&qid=1624626286892 | O176: Positive | P176: EUR | Q176: 99 | R176: 109.1642252
A177: BEL48 | B177: BEL | C177: R&D subsidies | D177: Sectoral | E177: Energy | F177: EUR 1 Mio | G177: Climate Mitigation | H177: Air Pollution | J177: No | K177: None | L177: Support to establish off-shore energy islands, biodiversity studies and impact assessment | M177: EU assessed national recovery and resilience plan - https://eur-lex.europa.eu/legal-content/EN/TXT/?uri=CELEX%3A52021SC0172&qid=1624626286892 | O177: Positive | P177: EUR | Q177: 1 | R177: 1.102668941
A178: BEL49 | B178: BEL | C178: Tax reduction / Other subsidy | D178: City/regional | E178: Forestry | F178: EUR 34 Mio | G178: Biodiversity | H178: Adaptation | J178: No | K178: None | L178: Biodiversity and adaptation to climate change of the Walloon Region – Forests & Remeandering | M178: EU assessed national recovery and resilience plan - https://eur-lex.europa.eu/legal-content/EN/TXT/?uri=CELEX%3A52021SC0172&qid=1624626286892 | O178: Positive | P178: EUR | Q178: 34 | R178: 37.490744
A179: BEL50 | B179: BEL | C179: Tax reduction / Other subsidy | D179: City/regional | E179: Forestry | F179: EUR 50 Mio | G179: Biodiversity | H179: Adaptation | J179: No | K179: None | L179: Biodiversity and adaptation to climate change of the Walloon Region – Protected areas & National parks | M179: EU assessed national recovery and resilience plan - https://eur-lex.europa.eu/legal-content/EN/TXT/?uri=CELEX%3A52021SC0172&qid=1624626286892 | O179: Positive | P179: EUR | Q179: 50 | R179: 55.13344705
A180: BEL51 | B180: BEL | C180: Tax reduction / Other subsidy | D180: City/regional | E180: Multiple or n.a. | F180: EUR 24.70 Mio | G180: Biodiversity | H180: Climate Mitigation | J180: No | K180: None | L180: invest in green infrastructure works to reconnec ecological defragmentated areas of the Flemish Region | M180: EU assessed national recovery and resilience plan - https://eur-lex.europa.eu/legal-content/EN/TXT/?uri=CELEX%3A52021SC0172&qid=1624626286892 | O180: Positive | P180: EUR | Q180: 24.7 | R180: 27.23592284
A181: BEL52 | B181: BEL | C181: Tax reduction / Other subsidy | D181: City/regional | E181: Agriculture | F181: EUR 280.96 Mio | G181: Biodiversity | H181: Adaptation | J181: No | K181: None | L181: Blue Deal of the Flemish Region (Projects A - B - C - E - F - G - H -I), for the creation of wetlands | M181: EU assessed national recovery and resilience plan - https://eur-lex.europa.eu/legal-content/EN/TXT/?uri=CELEX%3A52021SC0172&qid=1624626286892 | O181: Positive | P181: EUR | Q181: 280.96 | R181: 309.8058657
A182: BEL53 | B182: BEL | C182: Tax reduction / Other subsidy | D182: City/regional | E182: Agriculture | F182: EUR 10 Mio | G182: Biodiversity | H182: Adaptation | J182: No | K182: None | L182: Blue Deal of the Flemish Region (Project D), for the creation of wetlands | M182: EU assessed national recovery and resilience plan - https://eur-lex.europa.eu/legal-content/EN/TXT/?uri=CELEX%3A52021SC0172&qid=1624626286892 | O182: Positive | P182: EUR | Q182: 10 | R182: 11.02668941
A183: BEL54 | B183: BEL | C183: Tax reduction / Other subsidy | D183: City/regional | E183: Surface transport | F183: EUR 345.46 Mio | G183: Climate Mitigation | H183: Air Pollution | J183: No | K183: None | L183: investment reform to extent cycling infrastructure of the Flemish Region | M183: EU assessed national recovery and resilience plan - https://eur-lex.europa.eu/legal-content/EN/TXT/?uri=CELEX%3A52021SC0172&qid=1624626286892 | O183: Positive | P183: EUR | Q183: 345.46 | R183: 380.9280124
A184: BEL55 | B184: BEL | C184: Tax reduction / Other subsidy | D184: City/regional | E184: Surface transport | F184: EUR 13.74 Mio | G184: Climate Mitigation | H184: Air Pollution | J184: No | K184: None | L184: investment reform to extent cycling infrastructure – Corridors Vélo of the Walloon Region | M184: EU assessed national recovery and resilience plan - https://eur-lex.europa.eu/legal-content/EN/TXT/?uri=CELEX%3A52021SC0172&qid=1624626286892 | O184: Positive | P184: EUR | Q184: 13.74 | R184: 15.15067125
A185: BEL56 | B185: BEL | C185: Tax reduction / Other subsidy | D185: City/regional | E185: Surface transport | F185: EUR 34.10 Mio | G185: Climate Mitigation | H185: Air Pollution | J185: No | K185: None | L185: investment reform to extent cycling infrastructure – Vélo Plus | M185: EU assessed national recovery and resilience plan - https://eur-lex.europa.eu/legal-content/EN/TXT/?uri=CELEX%3A52021SC0172&qid=1624626286892 | O185: Positive | P185: EUR | Q185: 34.1 | R185: 37.60101089
A186: BEL57 | B186: BEL | C186: Tax reduction / Other subsidy | D186: Economy-wide | E186: Surface transport | F186: EUR 17.40 Mio | G186: Climate Mitigation | H186: Air Pollution | J186: No | K186: None | L186: investment reform to extent cycling infrastructure – Schuman | M186: EU assessed national recovery and resilience plan - https://eur-lex.europa.eu/legal-content/EN/TXT/?uri=CELEX%3A52021SC0172&qid=1624626286892 | O186: Positive | P186: EUR | Q186: 17.4 | R186: 19.18643957
A187: BEL58 | B187: BEL | C187: Tax reduction / Other subsidy | D187: City/regional | E187: Surface transport | F187: EUR 105 Mio | G187: Climate Mitigation | H187: Air Pollution | J187: No | K187: None | L187: Tram extension Liège | M187: EU assessed national recovery and resilience plan - https://eur-lex.europa.eu/legal-content/EN/TXT/?uri=CELEX%3A52021SC0172&qid=1624626286892 | O187: Positive | P187: EUR | Q187: 105 | R187: 115.7802388
A188: BEL59 | B188: BEL | C188: Tax reduction / Other subsidy | D188: City/regional | E188: Surface transport | F188: EUR 60 Mio | G188: Climate Mitigation | H188: Air Pollution | J188: No | K188: None | L188: Metro extension Charleroi | M188: EU assessed national recovery and resilience plan - https://eur-lex.europa.eu/legal-content/EN/TXT/?uri=CELEX%3A52021SC0172&qid=1624626286892 | O188: Positive | P188: EUR | Q188: 60 | R188: 66.16013646
A189: BEL60 | B189: BEL | C189: Tax reduction / Other subsidy | D189: Economy-wide | E189: Surface transport | F189: EUR 26.64 Mio | G189: Climate Mitigation | H189: Air Pollution | J189: No | K189: None | L189: Smart road signals – Walloon Region | M189: EU assessed national recovery and resilience plan - https://eur-lex.europa.eu/legal-content/EN/TXT/?uri=CELEX%3A52021SC0172&qid=1624626286892 | O189: Positive | P189: EUR | Q189: 26.64 | R189: 29.37510059
A190: BEL61 | B190: BEL | C190: Tax reduction / Other subsidy | D190: Economy-wide | E190: Surface transport | F190: EUR 59.29 Mio | G190: Climate Mitigation | H190: Air Pollution | J190: No | K190: None | L190: Accessible and multimodal train stations of the Federal State – urban stations | M190: EU assessed national recovery and resilience plan - https://eur-lex.europa.eu/legal-content/EN/TXT/?uri=CELEX%3A52021SC0172&qid=1624626286892 | O190: Positive | P190: EUR | Q190: 59.29 | R190: 65.37724152
A191: BEL62 | B191: BEL | C191: Tax reduction / Other subsidy | D191: Economy-wide | E191: Surface transport | F191: EUR 15.71 Mio | G191: Climate Mitigation | H191: Air Pollution | J191: No | K191: None | L191: Accessible and multimodal train stations of the Federal State – rural stations | M191: EU assessed national recovery and resilience plan - https://eur-lex.europa.eu/legal-content/EN/TXT/?uri=CELEX%3A52021SC0172&qid=1624626286892 | O191: Positive | P191: EUR | Q191: 15.71 | R191: 17.32292906
A192: BEL63 | B192: BEL | C192: Tax reduction / Other subsidy | D192: Economy-wide | E192: Surface transport | F192: EUR 239 Mio | G192: Climate Mitigation | H192: Air Pollution | J192: No | K192: None | L192: Rail renovation – efficient network of the Federal State (TEN-T and electric/zero emission) | M192: EU assessed national recovery and resilience plan - https://eur-lex.europa.eu/legal-content/EN/TXT/?uri=CELEX%3A52021SC0172&qid=1624626286892 | O192: Positive | P192: EUR | Q192: 239 | R192: 263.5378769
A193: BEL64 | B193: BEL | C193: Tax reduction / Other subsidy | D193: Economy-wide | E193: Surface transport | F193: EUR 26 Mio | G193: Climate Mitigation | H193: Air Pollution | J193: No | K193: None | L193: Rail renovation – efficient network of the Federal State (other rail renovation) | M193: EU assessed national recovery and resilience plan - https://eur-lex.europa.eu/legal-content/EN/TXT/?uri=CELEX%3A52021SC0172&qid=1624626286892 | O193: Positive | P193: EUR | Q193: 26 | R193: 28.66939247
A194: BEL65 | B194: BEL | C194: Tax reduction / Other subsidy | D194: Economy-wide | E194: Surface transport | F194: EUR 10 Mio | G194: Climate Mitigation | H194: Air Pollution | J194: No | K194: None | L194: Rail renovation – efficient network of the Federal State – automatisation of the Traffic Management System | M194: EU assessed national recovery and resilience plan - https://eur-lex.europa.eu/legal-content/EN/TXT/?uri=CELEX%3A52021SC0172&qid=1624626286892 | O194: Positive | P194: EUR | Q194: 10 | R194: 11.02668941
A195: BEL66 | B195: BEL | C195: Tax reduction / Other subsidy | D195: City/regional | E195: Surface transport | F195: EUR 25.93 Mio | G195: Climate Mitigation | H195: Air Pollution | J195: No | K195: None | L195: Canal Albert and Trilogiport of the Walloon Region | M195: EU assessed national recovery and resilience plan - https://eur-lex.europa.eu/legal-content/EN/TXT/?uri=CELEX%3A52021SC0172&qid=1624626286892 | O195: Positive | P195: EUR | Q195: 25.93 | R195: 28.59220564
A196: BEL67 | B196: BEL | C196: Tax reduction / Other subsidy | D196: Economy-wide | E196: Surface transport | F196: EUR 15 Mio | G196: Climate Mitigation | H196: Air Pollution | J196: No | K196: None | L196: Rail – Smart mobility of the Federal State | M196: EU assessed national recovery and resilience plan - https://eur-lex.europa.eu/legal-content/EN/TXT/?uri=CELEX%3A52021SC0172&qid=1624626286892 | O196: Positive | P196: EUR | Q196: 15 | R196: 16.54003412
A197: BEL68 | B197: BEL | C197: Tax reduction / Other subsidy | D197: City/regional | E197: Surface transport | F197: EUR 5.65 Mio | G197: Climate Mitigation | H197: Air Pollution | J197: No | K197: None | L197: Mobility-as-a-Service (MaaS) deployment of the Brussels-Capital Region | M197: EU assessed national recovery and resilience plan - https://eur-lex.europa.eu/legal-content/EN/TXT/?uri=CELEX%3A52021SC0172&qid=1624626286892 | O197: Positive | P197: EUR | Q197: 5.65 | R197: 6.230079517
A198: BEL69 | B198: BEL | C198: Grant/Loan (including interest-free loans) | D198: City/regional | E198: Surface transport | F198: EUR 8 Mio | G198: Climate Mitigation | H198: Air Pollution | J198: No | K198: None | L198: Modal shift grants of the Brussels-Capital Region, aims to improve the provision of public transport services to make public transport an attractive alternative to the use of personal cars and reduce congestion and greenhouse gas emissions | M198: EU assessed national recovery and resilience plan - https://eur-lex.europa.eu/legal-content/EN/TXT/?uri=CELEX%3A52021SC0172&qid=1624626286892 | O198: Positive | P198: EUR | Q198: 8 | R198: 8.821351529
A199: BEL70 | B199: BEL | C199: Tax reduction / Other subsidy | D199: City/regional | E199: Surface transport | F199: EUR 51 Mio | G199: Climate Mitigation | H199: Air Pollution | J199: No | K199: None | L199: Smart move of the Brussels-Capital Region, to establish smart mobility | M199: EU assessed national recovery and resilience plan - https://eur-lex.europa.eu/legal-content/EN/TXT/?uri=CELEX%3A52021SC0172&qid=1624626286892 | O199: Positive | P199: EUR | Q199: 51 | R199: 56.23611599
A200: BEL71 | B200: BEL | C200: Tax reduction / Other subsidy | D200: City/regional | E200: Surface transport | F200: EUR 55.5 Mio | G200: Climate Mitigation | H200: Air Pollution | J200: No | K200: None | L200: Greening the bus fleet of the Flemish Region | M200: EU assessed national recovery and resilience plan - https://eur-lex.europa.eu/legal-content/EN/TXT/?uri=CELEX%3A52021SC0172&qid=1624626286892 | O200: Positive | P200: EUR | Q200: 55.5 | R200: 61.19812623
... 1498 more rows

Sheet selection lists
A1: Type of measure | C1: Scope | F1: Sector | H1: Yes/No | J1: Environmental focus 1 | L1: Positive/Negative/Indeterminate | N1: Gender sensitive?
A2: Tax reduction / other subsidy | C2: Sectoral | F2: Energy | H2: No | J2: Climate mitigation | L2: Indeterminate | N2: Support women’s economic security
A3: Grant/Loan (including interest-free loans) | C3: Economy-wide | F3: Surface transport | H3: Yes | J3: Air Pollution | L3: Mixed | N3: Address violence against women
A4: Regulatory change | C4: City/regional | F4: Multiple or n.a. | H4: n/a | J4: Biodiversity | L4: Negative | N4: Support unpaid care
A5: Other or not specified | C5: Sector-specific | F5: Agriculture | J5: Water | L5: Positive | N5: None
A6: Skills training | F6: Industry | J6: Other
A7: R&D subsidies | F7: Buildings | J7: Waste & recycling
F8: Air transport | J8: Plastics
F9: Forestry | J9: Adaptation
F10: Maritime transport
F11: Waste management
